{"text_format":"1","workbook":"xlsx","n_sheets":5,"sheets":["UrlaubsAntrag","Abteilungen","Namen","Feiertage in den BL","! Bedienungsanleitung !"],"not_rendered":{"charts":0,"images":8,"macros":1,"external_links":0,"defined_names":4,"comments":1,"pivot_tables":0},"unopened":[],"bounds":{"document_bytes":16777216,"sheet_cells":100000,"rows_first":2000,"rows_last":500,"rows_between":2000,"halvings":0,"cell_chars":16384,"cell_head_chars":4096},"cells_cut":0,"cells_raw":0,"read":"whole","date_system":"1900"}

{"sheet":"UrlaubsAntrag","index":0,"n_rows":333,"n_cols":52,"rows_kept":333,"cut":false,"hidden":false,"merged":[[24,9,24,11],[7,13,7,15],[7,17,7,19],[23,5,23,7],[19,4,19,7],[24,5,24,7],[17,3,17,7],[22,0,22,7],[11,0,11,7],[8,1,8,2],[2,9,2,11],[13,9,13,11],[0,5,0,7],[2,1,2,3],[13,1,13,3],[12,5,12,7],[2,5,2,7],[13,5,13,7],[8,4,8,7],[1,5,1,7],[0,0,0,2],[98,3,98,4],[20,1,20,2],[31,1,31,2],[5,3,5,7],[16,3,16,7],[27,3,27,7],[31,4,31,5],[28,3,28,7],[9,1,9,2],[9,4,9,5],[6,3,6,7],[19,1,19,2],[20,4,20,5],[30,1,30,2],[24,1,24,3],[30,4,30,7]]}
[{"$f":"IF(VALUE(W5)>0,\"Voll funktionsfähige Demoversion bis \"&INDEX(Monatsnamen,W4)&\" \"&W5,\"Vollversion SL-Urlaubsplaner\")","v":"Voll funktionsfähige Demoversion bis November 2017"},null,null,null,"Land / BL:","Bayern",null,null,false,null,null,{"$f":"CELL(\"Format\",INDIRECT(L2))","v":"S"},false,null,null,null,null,null,null,null,null,null,0,null,false,null,{"$f":"INDEX(Y6:Y17,MONTH(TODAY()))","v":"August"}]
["Urlaubsantrag",null,null,null,"Abteilung:",null,null,null,null,null,null,"N10",null,null,null,null,null,null,null,null,null,null,0,null,null,null,{"$f":"YEAR(TODAY())","v":2016},null,"2015-12-11"]
["Herr / Frau:",null,null,null,"Pers.-Nr.:",null,null,null,null,{"$f":"IF(ISBLANK(F3),\"\",VLOOKUP(F3,#REF!,2,FALSE))","v":""},null,null,null,null,null,"2013-11-01",null,null,null,null,null,null,1]
["Mein Urlaubsanspruch beträgt noch",null,null,{"$f":"IF(C4=1,\"Tag\",\"Tage\")","v":"Tage"},null,null,null,null,null,null,null,null,null,null,null,null,null,null,null,null,null,null,{"$f":"'Feiertage in den BL'!C1","v":11}]
["Davon wird Urlaub beantragt   am/vom",null,null,"bis einschl.",null,"=",null,{"$f":"IF(G5=1,\"Tag\",\"Tage\")","v":"Tage"},null,{"$f":"IF(H5=\"\",(1*F5>\"\")-D6,NETWORKDAYS(F5,H5)-D6)","v":{"$error":"#VALUE!"}},null,null,null,null,null,null,{"$f":"IF(AND(AC1=AC2,AC1>0),\"Enddatum anklicken\",\"\")","v":""},null,null,null,null,null,{"$f":"'Feiertage in den BL'!D1","v":2017}]
[null,{"$f":"IF(A6>1,\"Tage sind nicht anzurechnen, wegen\",\"Tag ist nicht anzurechnen, wegen\")","v":"Tag ist nicht anzurechnen, wegen"},null,null,null,null,null,null,null,null,null,null,null,null,null,null,null,null,null,null,null,null,null,1,"Januar",2013,1,{"$f":"VLOOKUP(N8,Y6:AA17,3,FALSE)","v":8},8,null,null,null,"Datum",{"$f":"R8","v":2016}]
[null,null,null,"(Geburt, Heirat, Umzug, Todesfall, etc.)",null,null,null,null,null,null,null,null,null,null,null,null,"Info",null,null,null,null,null,null,2,"Februar",2014,2,{"$f":"\"1.\"&AB6&\".\"&R8","v":"1.8.2016"},{"$f":"VLOOKUP(AC6,X6:Y17,2)","v":"August"},null,null,null,"Ostersonntag",{"$f":"DOLLAR((DAY(MINUTE(AH6/38)/2+55)&\".4.\"&AH6)/7,)*7-IF(YEAR(1)=1904,5,6)","v":"2016-03-27"},0,"D"]
["Aktueller Urlaubsanspruch jetzt noch",null,{"$f":"IF(C4-G5+A6=0,\"0\",C4-G5+A6)","v":"0"},{"$f":"IF(C8=1,\"Tag\",\"Tage\")","v":"Tage"},null,null,null,null,null,null,null,null,null,"August",null,null,null,2016,null,null,null,null,null,3,"März",2015,3,{"$f":"DATEVALUE(AB7)","v":42583},null,null,null,null,"Ostermontag",{"$f":"AH7+1","v":"2016-03-28"},1,"D"]
["Antragsteller:",null,null,"genehmigt:",null,null,null,null,null,null,null,null,null,"Mo","Di","Mi","Do","Fr","Sa","So",null,null,null,4,"April",2016,4,null,null,null,null,null,"Karfreitag",{"$f":"AH7-2","v":"2016-03-25"},1,"D"]
["Datum:",null,null,"Datum:",null,null,null,null,null,null,null,null,{"$f":"IF(WEEKNUM(N10)=53,1,WEEKNUM(N10))","v":31},"2015-07-27","2015-07-28","2015-07-29","2015-07-30","2015-07-31","2015-08-01","2015-08-02",null,null,null,5,"Mai",2017,5,null,null,null,null,null,"Christi Himmelfahrt",{"$f":"AH7+39","v":"2016-05-05"},1,"D"]
["!!  Der Urlaub ist in jedem Falle noch vor Antritt des Urlaubs im Personal- / Lohnbüro bzw. der zuständigen Stelle abzugeben  !!",null,null,null,null,null,null,null,null,null,null,null,32,"2015-08-03","2015-08-04","2015-08-05","2015-08-06","2015-08-07","2015-08-08","2015-08-09",null,null,null,6,"Juni",2018,6,null,null,null,null,null,"Pfingstsonntag",{"$f":"AH7+49","v":"2016-05-15"},1,"D"]
["- - - - - - - - - - - - - - - - - - - - - - - - - - - - - - - - - - - - - - - - - - - - - - - - - - - - - - - - - - - - - - - - - - - - - - - - - - - - - - - - - ",null,null,null,null,null,null,null,null,null,null,null,{"$f":"IF(WEEKNUM(N12)=53,\"KW 53/1\",WEEKNUM(N12))","v":33},"2015-08-10","2015-08-11","2015-08-12","2015-08-13","2015-08-14","2015-08-15","2015-08-16",null,null,null,7,"Juli",2019,7,null,null,null,null,null,"Pfingstmontag",{"$f":"AH7+50","v":"2016-05-16"},1,"D"]
["Urlaubsantrag",null,null,null,"Abteilung:",null,null,null,null,null,null,null,{"$f":"IF(WEEKNUM(N13)=53,\"KW 53/1\",WEEKNUM(N13))","v":34},"2015-08-17","2015-08-18","2015-08-19","2015-08-20","2015-08-21","2015-08-22","2015-08-23",null,null,null,8,"August",2020,8,null,null,null,null,null,"Fronleichnam",{"$f":"DATE(AH6,3,1)+MOD((255-11*MOD(AH6,19)-21),30)+21+(MOD((255-11*MOD(AH6,19)-21),30) + 21>48)+6-MOD(AH6+INT(AH6/4)+MOD((255- 11*MOD(AH6,19)- 21),30)+21+(MOD((255-11*MOD(AH6,19)-21),30)+21>48)+1,7)+60","v":"2016-05-26"},1,"D"]
["Herr / Frau:",null,null,null,"Pers.-Nr.:",null,null,null,null,null,null,null,{"$f":"IF(WEEKNUM(N14)=53,\"KW 53/1\",WEEKNUM(N14))","v":35},"2015-08-24","2015-08-25","2015-08-26","2015-08-27","2015-08-28","2015-08-29","2015-08-30",null,null,null,9,"September",2021,9,null,null,null,null,null,"Neujahr",{"$f":"DATE(AH6,1,1)","v":"2016-01-01"},1,"D"]
["Mein Urlaubsanspruch beträgt noch",null,null,{"$f":"IF(C15=1,\"Tag\",\"Tage\")","v":"Tage"},null,null,null,null,null,null,null,null,{"$f":"IF(WEEKNUM(N15)=53,\"KW 53/1\",WEEKNUM(N15))","v":36},"2015-08-31","2015-09-01","2015-09-02","2015-09-03","2015-09-04","2015-09-05","2015-09-06",null,null,null,10,"Oktober",2022,10,null,null,null,null,null,"Heilige Dreikönige",{"$f":"DATE(AH6,1,6)","v":"2016-01-06"},1,"D"]
["Davon wird Urlaub beantragt   am/vom",null,null,"bis einschl.",null,"=",null,{"$f":"IF(G16=1,\"Tag\",\"Tage\")","v":"Tage"},null,{"$f":"IF(H16=\"\",(1*F16>\"\")-D17,NETWORKDAYS(F16,H16)-D17)","v":{"$error":"#VALUE!"}},null,null,37,"2015-09-07","2015-09-08","2015-09-09","2015-09-10","2015-09-11","2015-09-12","2015-09-13",null,null,null,11,"November",2023,11,null,null,null,null,null,"Tag der Arbeit",{"$f":"DATE(AH6,5,1)","v":"2016-05-01"},1,"D"]
[null,{"$f":"IF(A17>1,\"Tage sind nicht anzurechnen, wegen\",\"Tag ist nicht anzurechnen, wegen\")","v":"Tag ist nicht anzurechnen, wegen"},null,null,null,null,null,null,null,null,null,null,38,"2015-09-14","2015-09-15","2015-09-16","2015-09-17","2015-09-18","2015-09-19","2015-09-20",null,null,null,12,"Dezember",2024,12,null,null,null,null,null,"Tag der deutschen Einheit",{"$f":"DATE(AH6,10,3)","v":"2016-10-03"},1,"D"]
[null,null,null,"(Geburt, Heirat, Umzug, Todesfall, etc.)",null,null,null,null,null,null,null,null,39,"2015-09-21","2015-09-22","2015-09-23","2015-09-24","2015-09-25","2015-09-26","2015-09-27",null,null,null,null,null,2025,null,null,null,null,null,null,"Allerheiligen",{"$f":"DATE(AH6,11,1)","v":"2016-11-01"},1,"D"]
["Aktueller Urlaubsanspruch jetzt noch",null,{"$f":"IF(C15-G16+A17=0,\"0\",C15-G16+A17)","v":"0"},{"$f":"IF(C19=1,\"Tag\",\"Tage\")","v":"Tage"},null,null,null,null,null,null,null,null,40,"2015-09-28","2015-09-29","2015-09-30","2015-10-01","2015-10-02","2015-10-03","2015-10-04",null,null,null,null,null,2026,null,null,null,null,null,null,"Buß- und Bettag",{"$f":"DATE(AH6,12,25)-WEEKDAY(DATE(AH6,12,25),2)-32","v":"2016-11-16"},0,"D"]
["Antragsteller:",null,null,"genehmigt:",null,null,null,null,null,null,null,null,41,"2015-10-05","2015-10-06","2015-10-07","2015-10-08","2015-10-09","2015-10-10","2015-10-11",null,null,null,null,null,2027,null,null,null,null,null,null,"1. Weihnachtstag",{"$f":"DATE(AH6,12,25)","v":"2016-12-25"},1,"D"]
["Datum:",null,null,"Datum:",null,null,null,null,null,null,null,null,null,null,null,null,null,null,null,null,null,null,null,null,null,null,null,null,null,null,null,null,"2. Weihnachtstag",{"$f":"DATE(AH6,12,26)","v":"2016-12-26"},1,"D"]
["!!  Der Urlaub ist in jedem Falle noch vor Antritt des Urlaubs im Personal- / Lohnbüro bzw. der zuständigen Stelle abzugeben  !!",null,null,null,null,null,null,null,null,null,null,null,null,null,null,null,null,null,null,null,null,null,null,null,null,"Test",null,null,null,null,null,null,"Schweizer Nationalfeiertag",{"$f":"IF($F$1=\"Schweiz  (CH)\",DATE(AH6,8,1),0)","v":"00:00:00"},0,"CH"]
["- - - - - - - - - - - - - - - - - - - - - - - - - - - - - - - - - - - - - - - - - - - - - - - - - - - - - - - - - - - - - - - - - - - - - - - - - - - - - - - - - ",null,null,null,null,null,null,null,null,null,null,null,null,null,null,null,null,null,null,null,null,null,null,null,null,null,null,null,null,null,null,null,"St. Josef (CH)",{"$f":"IF($F$1=\"Schweiz  (CH)\",DATE(AH6,3,19),0)","v":"00:00:00"},0,"CH",null,null,null,null,null,null,null,null,null,null,null,null,null,null,null,"C o p y  ri gh t   S o f  t w a r e  und  B ü  r o s e r v.  Ch r i s t i n e  S c h r e m  m er   S e l ig e n  st a d t"]
["Urlaubsantrag",null,null,null,"Abteilung:",null,null,null,null,null,null,null,null,null,null,null,null,null,null,null,null,null,null,null,null,null,null,null,null,null,null,null,"Berchtoldstag (CH)",{"$f":"IF($F$1=\"Schweiz  (CH)\",DATE(AH6,1,2),0)","v":"00:00:00"},0,"CH"]
["Herr / Frau:",null,null,null,"Pers.-Nr.:",null,null,null,null,{"$f":"IF(ISBLANK(F25),\"\",VLOOKUP(F25,#REF!,2,FALSE))","v":""},null,null,null,null,null,null,null,null,null,null,null,null,null,null,null,null,null,null,null,null,null,null,"Friedensfest Augsburg",{"$f":"IF($F$1=\"Bayern\",DATE(AH6,8,8),0)","v":"2016-08-08"},0,"D"]
["Mein Urlaubsanspruch beträgt noch",null,null,{"$f":"IF(C26=1,\"Tag\",\"Tage\")","v":"Tage"},null,null,null,null,null,null,null,null,null,null,null,null,null,null,null,null,null,null,null,null,null,null,null,null,null,null,null,null,"Österreichicher Nationalfeiertag (A)",{"$f":"IF($F$1=\"Österreich  (A)\",DATE(AH6,10,26),0)","v":"00:00:00"},0,"Ö"]
["Davon wird Urlaub beantragt   am/vom",null,null,"bis einschl.",null,"=",null,{"$f":"IF(G27=1,\"Tag\",\"Tage\")","v":"Tage"},null,{"$f":"IF(H27=\"\",(1*F27>\"\")-D28,NETWORKDAYS(F27,H27)-D28)","v":{"$error":"#VALUE!"}},null,null,null,null,null,null,null,null,null,null,null,null,null,null,null,null,null,null,null,null,null,null,"Mariä Himmelfahrt",{"$f":"DATE(AH6,8,15)","v":"2016-08-15"},0,"D"]
[null,{"$f":"IF(A28>1,\"Tage sind nicht anzurechnen, wegen\",\"Tag ist nicht anzurechnen, wegen\")","v":"Tag ist nicht anzurechnen, wegen"},null,null,null,null,null,null,null,null,null,null,null,null,null,null,null,null,null,null,null,null,null,null,null,null,null,null,null,null,null,null,"Reformationstag",{"$f":"DATE(AH6,10,31)","v":"2016-10-31"},0,"D"]
[null,null,null,"(Geburt, Heirat, Umzug, Todesfall, etc.)",null,null,null,null,null,null,null,null,null,null,null,null,null,null,null,null,null,null,null,null,null,null,null,null,null,null,null,null,"Maria Empfängnis",{"$f":"IF(OR($F$1=\"Schweiz  (CH)\",$F$1=\"Österreich  (A)\"),DATE(AH6,12,8),0)","v":"00:00:00"},0,"ÖCH"]
["Aktueller Urlaubsanspruch jetzt noch",null,{"$f":"IF(C26-G27+A28=0,\"0\",C26-G27+A28)","v":"0"},{"$f":"IF(C30=1,\"Tag\",\"Tage\")","v":"Tage"},null,null,null,null,null,null,null,null,null,null,null,null,null,null,null,null,null,null,null,null,null,null,null,null,null,null,null,null,"Datum",{"$f":"AH6+1","v":2017},0,"D"]
["Antragsteller:",null,null,"genehmigt:",null,null,null,null,null,null,null,null,null,null,null,null,null,null,null,null,null,null,null,null,null,null,null,null,null,null,null,null,"Ostersonntag",{"$f":"DOLLAR((DAY(MINUTE(AH30/38)/2+55)&\".4.\"&AH30)/7,)*7-IF(YEAR(1)=1904,5,6)","v":"2017-04-16"},0,"D"]
["Datum:",null,null,"Datum:",null,null,null,null,null,null,null,null,null,null,null,null,null,null,null,null,null,null,null,null,null,null,null,null,null,null,null,null,"Ostermontag",{"$f":"AH31+1","v":"2017-04-17"},1,"D"]
["!!  Der Urlaub ist in jedem Falle noch vor Antritt des Urlaubs im Personal- / Lohnbüro bzw. der zuständigen Stelle abzugeben  !!",null,null,null,null,null,null,null,null,null,null,null,null,null,null,null,null,null,null,null,null,null,null,null,null,null,null,null,null,null,null,null,"Karfreitag",{"$f":"AH31-2","v":"2017-04-14"},1,"D"]
[null,null,null,null,null,null,null,null,null,null,null,null,null,null,null,null,null,null,null,null,null,null,null,null,null,null,null,null,null,null,null,null,"Christi Himmelfahrt",{"$f":"AH31+39","v":"2017-05-25"},1,"D"]
[null,null,null,null,null,null,null,null,null,null,null,null,null,null,null,null,null,null,null,null,null,null,null,null,null,null,null,null,null,null,null,null,"Pfingstsonntag",{"$f":"AH32+49","v":"2017-06-05"},1,"D"]
[null,null,null,null,null,null,null,null,null,null,null,null,null,null,null,null,null,null,null,null,null,null,null,null,null,null,null,null,null,null,null,null,"Pfingstmontag",{"$f":"AH32+50","v":"2017-06-06"},1,"D"]
[null,null,null,null,null," ",null,null,null,null,null,null,null,null,null,null,null,null,null,null,null,null,null,null,null,null,null,null,null,null,null,null,"Fronleichnam",{"$f":"DATE(AH30,3,1)+MOD((255-11*MOD(AH30,19)-21),30)+21+(MOD((255-11*MOD(AH30,19)-21),30) + 21>48)+6-MOD(AH30+INT(AH30/4)+MOD((255- 11*MOD(AH30,19)- 21),30)+21+(MOD((255-11*MOD(AH30,19)-21),30)+21>48)+1,7)+60","v":"2017-06-15"},1,"D"]
[null,null,null,null,null,null,null,null,null,null,null,null,null,null,null,null,null,null,null,null,null,null,null,null,null,null,null,null,null,null,null,null,"Neujahr",{"$f":"DATE(AH30,1,1)","v":"2017-01-01"},1,"D"]
[null,null,null,null,null,null,null,null,null,null,null,null,null,null,null,null,null,null,null,null,null,null,null,null,null,null,null,null,null,null,null,null,"Heilige Dreikönige",{"$f":"DATE(AH30,1,6)","v":"2017-01-06"},1,"D"]
[null,null,null,null,null,null,null,null,null,null,null,null,null,null,null,null,null,null,null,null,null,null,null,null,null,null,null,null,null,null,null,null,"Tag der Arbeit",{"$f":"DATE(AH30,5,1)","v":"2017-05-01"},1,"D"]
[null,null,null,null,null,null,null,null,null,null,null,null,null,null,null,null,null,null,null,null,null,null,null,null,null,null,null,null,null,null,null,null,"Tag der deutschen Einheit",{"$f":"DATE(AH30,10,3)","v":"2017-10-03"},1,"D"]
[null,null,null,null,null,null,null,null,null,null,null,null,null,null,null,null,null,null,null,null,null,null,null,null,null,null,null,null,null,null,null,null,"Allerheiligen",{"$f":"DATE(AH30,11,1)","v":"2017-11-01"},1,"D"]
[null,null,null,null,null,null,null,null,null,null,null,null,null,null,null,null,null,null,null,null,null,null,null,null,null,null,null,null,null,null,null,null,"Buß- und Bettag",{"$f":"DATE(AH30,12,25)-WEEKDAY(DATE(AH30,12,25),2)-32","v":"2017-11-22"},0,"D"]
[null,null,null,null,null,null,null,null,null,null,null,null,null,null,null,null,null,null,null,null,null,null,null,null,null,null,null,null,null,null,null,null,"1. Weihnachtstag",{"$f":"DATE(AH30,12,25)","v":"2017-12-25"},1,"D"]
[null,null,null,null,null,null,null,null,null,null,null,null,null,null,null,null,null,null,null,null,null,null,null,null,null,null,null,null,null,null,null,null,"2. Weihnachtstag",{"$f":"DATE(AH30,12,26)","v":"2017-12-26"},1,"D"]
[null,null,null,null,null,null,null,null,null,null,null,null,null,null,null,null,null,null,null,null,null,null,null,null,null,null,null,null,null,null,null,null,"Schweizer Nationalfeiertag",{"$f":"IF($F$1=\"Schweiz  (CH)\",DATE(AH30,8,1),0)","v":"00:00:00"},0,"CH"]
[null,null,null,null,null,null,null,null,null,null,null,null,null,null,null,null,null,null,null,null,null,null,null,null,null,null,null,null,null,null,null,null,"St. Josef (CH)",{"$f":"IF($F$1=\"Schweiz  (CH)\",DATE(AH30,3,19),0)","v":"00:00:00"},0,"CH"]
[null,null,null,null,null,null,null,null,null,null,null,null,null,null,null,null,null,null,null,null,null,null,null,null,null,null,null,null,null,null,null,null,"Berchtoldstag (CH)",{"$f":"IF($F$1=\"Schweiz  (CH)\",DATE(AH30,1,2),0)","v":"00:00:00"},0,"CH"]
[null,null,null,null,null,null,null,null,null,null,null,null,null,null,null,null,null,null,null,null,null,null,null,null,null,null,null,null,null,null,null,null,"Friedensfest Augsburg",{"$f":"IF($F$1=\"Bayern\",DATE(AH30,8,8),0)","v":"2017-08-08"},0,"D"]
[1,2,3,4,5,6,7,8,9,10,11,12,13,14,15,16,17,18,19,20,21,22,23,24,25,26,27,28,29,30,31,32,"Österreichicher Nationalfeiertag",{"$f":"DATE(AH30,10,26)","v":"2017-10-26"},0,"Ö"]
[null,null,null,null,null,null,null,null,null,null,null,null,null,null,null,null,null,null,null,null,null,null,null,null,null,null,null,null,null,null,null,null,"Österreichicher Nationalfeiertag (A)",{"$f":"IF($F$1=\"Österreich  (A)\",DATE(AH30,10,26),0)","v":"00:00:00"},0,"Ö"]
[null,null,null,null,null,null,null,null,null,null,null,null,null,null,null,null,null,null,null,null,null,null,null,null,null,null,null,null,null,null,null,null,"Mariä Himmelfahrt",{"$f":"DATE(AH30,8,15)","v":"2017-08-15"},0,"D"]
[null,null,null,null,null,null,null,null,null,null,null,null,null,null,null,null,null,null,null,null,null,null,null,null,null,null,null,null,null,null,null,null,"Reformationstag",{"$f":"DATE(AH30,10,31)","v":"2017-10-31"},0,"D"]
[null,null,null,null,null,null,null,null,null,null,null,null,null,null,null,null,null,null,null,null,null,null,null,null,null,null,null,null,null,null,null,null,"Maria Empfängnis",{"$f":"IF(OR($F$1=\"Schweiz  (CH)\",$F$1=\"Österreich  (A)\"),DATE(AH30,12,8),0)","v":"00:00:00"},0,"ÖCH"]
[1,2,3,4,5,6,7,8,9,10,11,12,13,14,15,16,17,18,19,20,21,22,23,24,25,26,27,28,29,30,31,32,"Datum",{"$f":"AH6-1","v":2015},1,"D"]
[null,null,null,null,null,null,null,null,null,null,null,null,null,null,null,null,null,null,null,null,null,null,null,null,null,null,null,null,null,null,null,null,"Ostersonntag",{"$f":"DOLLAR((DAY(MINUTE(AH55/38)/2+55)&\".4.\"&AH55)/7,)*7-IF(YEAR(1)=1904,5,6)","v":"2015-04-05"},0,"D"]
[null,null,null,null,null,null,null,null,null,null,null,null,null,null,null,null,null,null,null,null,null,null,null,null,null,null,null,null,null,null,null,null,"Ostermontag",{"$f":"AH56+1","v":"2015-04-06"},1,"D"]
[null,null,null,null,null,null,null,null,null,null,null,null,null,null,null,null,null,null,null,null,null,null,null,null,null,null,null,null,null,null,null,null,"Karfreitag",{"$f":"AH56-2","v":"2015-04-03"},1,"D"]
[null,null,null,null,null,null,null,null,null,null,null,null,null,null,null,null,null,null,null,null,null,null,null,null,null,null,null,null,null,null,null,null,"Christi Himmelfahrt",{"$f":"AH56+39","v":"2015-05-14"},1,"D"]
[0.5,null,null,null,null,null,null,null,null,null,null,null,null,null,null,null,null,null,null,null,null,null,null,null,null,null,null,null,null,null,null,null,"Pfingstsonntag",{"$f":"AH57+49","v":"2015-05-25"},1,"D"]
[1,null,null,null,null,null,null,null,null,null,null,null,null,null,null,null,null,null,null,null,null,null,null,null,null,null,null,null,null,null,null,null,"Pfingstmontag",{"$f":"AH57+50","v":"2015-05-26"},1,"D"]
[1.5,null,null,null,null,null,null,null,null,null,null,null,null,null,null,null,null,null,null,null,null,null,null,null,null,null,null,null,null,null,null,null,"Fronleichnam",{"$f":"DATE(AH55,3,1)+MOD((255-11*MOD(AH55,19)-21),30)+21+(MOD((255-11*MOD(AH55,19)-21),30) + 21>48)+6-MOD(AH55+INT(AH55/4)+MOD((255- 11*MOD(AH55,19)- 21),30)+21+(MOD((255-11*MOD(AH55,19)-21),30)+21>48)+1,7)+60","v":"2015-06-04"},1,"D"]
[2,null,null,null,null,null,null,null,null,null,null,null,null,null,null,null,null,null,null,null,null,null,null,null,null,null,null,null,null,null,null,null,"Neujahr",{"$f":"DATE(AH55,1,1)","v":"2015-01-01"},1,"D"]
[2.5,null,null,null,null,null,null,null,null,null,null,null,null,null,null,null,null,null,null,null,null,null,null,null,null,null,null,null,null,null,null,null,"Heilige Dreikönige",{"$f":"DATE(AH55,1,6)","v":"2015-01-06"},1,"D"]
[3,null,null,null,null,null,null,null,null,null,null,null,null,null,null,null,null,null,null,null,null,null,null,null,null,null,null,null,null,null,null,null,"Tag der Arbeit",{"$f":"DATE(AH55,5,1)","v":"2015-05-01"},1,"D"]
[3.5,null,null,null,null,null,null,null,null,null,null,null,null,null,null,null,null,null,null,null,null,null,null,null,null,null,null,null,null,null,null,null,"Tag der deutschen Einheit",{"$f":"DATE(AH55,10,3)","v":"2015-10-03"},1,"D"]
[4,null,null,null,null,null,null,null,null,null,null,null,null,null,null,null,null,null,null,null,null,null,null,null,null,null,null,null,null,null,null,null,"Allerheiligen",{"$f":"DATE(AH55,11,1)","v":"2015-11-01"},1,"D"]
[null,null,null,null,null,null,null,null,null,null,null,null,null,null,null,null,null,null,null,null,null,null,null,null,null,null,null,null,null,null,null,null,"Buß- und Bettag",{"$f":"DATE(AH55,12,25)-WEEKDAY(DATE(AH55,12,25),2)-32","v":"2015-11-18"},0,"D"]
[null,null,null,null,null,null,null,null,null,null,null,null,null,null,null,null,null,null,null,null,null,null,null,null,null,null,null,null,null,null,null,null,"1. Weihnachtstag",{"$f":"DATE(AH55,12,25)","v":"2015-12-25"},1,"D"]
[null,null,null,null,null,null,null,null,null,null,null,null,null,null,null,null,null,null,null,null,null,null,null,null,null,null,null,null,null,null,null,null,"2. Weihnachtstag",{"$f":"DATE(AH55,12,26)","v":"2015-12-26"},1,"D"]
[null,null,null,null,null,null,null,null,null,null,null,null,null,null,null,null,null,null,null,null,null,null,null,null,null,null,null,null,null,null,null,null,"Schweizer Nationalfeiertag",{"$f":"IF($F$1=\"Schweiz  (CH)\",DATE(AH55,8,1),0)","v":"00:00:00"},0,"CH"]
[null,null,null,null,null,null,null,null,null,null,null,null,null,null,null,null,null,null,null,null,null,null,null,null,null,null,null,null,null,null,null,null,"St. Josef (CH)",{"$f":"IF($F$1=\"Schweiz  (CH)\",DATE(AH55,3,19),0)","v":"00:00:00"},0,"CH"]
[null,null,null,null,null,null,null,null,null,null,null,null,null,null,null,null,null,null,null,null,null,null,null,null,null,null,null,null,null,null,null,null,"Berchtoldstag (CH)",{"$f":"IF($F$1=\"Schweiz  (CH)\",DATE(AH55,1,2),0)","v":"00:00:00"},0,"CH"]
[null,null,null,null,null,null,null,null,null,null,null,null,null,null,null,null,null,null,null,null,null,null,null,null,null,null,null,null,null,null,null,null,"Friedensfest Augsburg",{"$f":"IF($F$1=\"Bayern\",DATE(AH55,8,8),0)","v":"2015-08-08"},0,"D"]
[null,null,null,null,null,null,null,null,null,null,null,null,null,null,null,null,null,null,null,null,null,null,null,null,null,null,null,null,null,null,null,null,"Österreichicher Nationalfeiertag (A)",{"$f":"IF($F$1=\"Österreich  (A)\",DATE(AH55,10,26),0)","v":"00:00:00"},0,"Ö"]
[null,null,null,null,null,null,null,null,null,null,null,null,null,null,null,null,null,null,null,null,null,null,null,null,null,null,null,null,null,null,null,null,"Mariä Himmelfahrt",{"$f":"DATE(AH55,8,15)","v":"2015-08-15"},0,"D"]
[null,null,null,null,null,null,null,null,null,null,null,null,null,null,null,null,null,null,null,null,null,null,null,null,null,null,null,null,null,null,null,null,"Reformationstag",{"$f":"DATE(AH55,10,31)","v":"2015-10-31"},0,"D"]
[null,null,null,null,null,null,null,null,null,null,null,null,null,null,null,null,null,null,null,null,null,null,null,null,null,null,null,null,null,null,null,null,"Maria Empfängnis",{"$f":"IF(OR($F$1=\"Schweiz  (CH)\",$F$1=\"Österreich  (A)\"),DATE(AH55,12,8),0)","v":"00:00:00"},0,"ÖCH"]
[]
[]
[]
[]
[]
[]
[]
[]
[]
[]
[]
[]
[]
[]
[]
[]
[]
[]
[]
[]
[]
[]
[]
[]
[]
[]
[]
[]
[]
[]
[]
[]
[]
[]
[]
[]
[]
[]
[]
[]
[]
[]
[]
[]
[]
[]
[]
[]
[]
[]
[]
[]
[]
[]
[]
[]
[]
[]
[]
[]
[]
[]
[]
[]
[]
[]
[]
[]
[]
[]
[]
[]
[]
[]
[]
[]
[]
[]
[]
[]
[]
[]
[]
[]
[]
[]
[]
[]
[]
[]
[]
[]
[]
[]
[]
[]
[]
[]
[]
[]
[]
[]
[]
[]
[]
[]
[]
[]
[]
[]
[]
[]
[]
[]
[]
[]
[]
[]
[]
[]
[null,null,null,null,null,null,null,null,null,null,null,null,"   ALLGEMEINE GESCHÄFTSBEDINGUNGEN"]
[null,null,null,null,null,null,null,null,null,null,null,null,"der Software und Büroservice Christine Schremmer"]
[]
[]
[null,null,null,null,null,null,null,null,null,null,null,null,"1. Vertragsgegenstand / Geltungsbereich"]
[]
[null,null,null,null,null,null,null,null,null,null,null,null,"1.1   Die vorliegenden Allgemeinen Geschäftsbedingungen gelten für den kostenlosen Download unserer Demoversionen sowie des kostenpflichtigen Downloads bzw. Verkaufs unserer Software \"SL-Urlaubsplaner\" nachfolgend Software genannt, über unsere Internetseite   www.urlaub-ferien-planung.de. "]
[null,null,null,null,null,null,null,null,null,null,null,null,"Im Falle des kostenpflichtigen Downloads kommt ein Kaufvertrag zwischen \"Software und Büroservice Christine Schremmer\", Odenwaldring 13, 63500 Seligenstadt und Ihnen als Käufer zustande. "]
[]
[null,null,null,null,null,null,null,null,null,null,null,null,"1.2 Unsere Allgemeinen Geschäftbedingungen gelten ausschließlich; entgegenstehende oder von diesen Geschäftsbedingungen abweichende Bedingungen Dritter erkennen wir nicht an, es sei denn, wir haben ausdrücklich schriftlich ihrer Geltung zugestimmt."]
[]
[]
[null,null,null,null,null,null,null,null,null,null,null,null,"2. WIDERRUFSBELEHRUNG FÜR VERBRAUCHER"]
[]
[null,null,null,null,null,null,null,null,null,null,null,null,"2.1 WIDERRUFSRECHT"]
[null,null,null,null,null,null,null,null,null,null,null,null,"SOFERN SIE VERBRAUCHER IM SINNE DES Paragraph 13 BGB SIND, KÖNNEN SIE IHRE VERTRAGSERKLÄRUNG INNERHALB VON ZWEI WOCHEN OHNE ANGABE VON GRÜNDEN IN TEXTFORM (Z.B. BRIEF, FAX, E-MAIL) ODER DURCH RÜCKSENDUNG DER SACHE WIDERRUFEN. DIE FRIST BEGINNT FRÜHESTENS MIT ERHALT DIESER BELEHRUNG. ZUR WAHRUNG DER WIDERRUFSFRIST GENÜGT DIE RECHTZEITIGE ABSENDUNG DES WIDERRUFS ODER DER SACHE. DER WIDERRUF IST ZU RICHTEN AN:"]
[null,null,null,null,null,null,null,null,null,null,null,null,"SOFTWARE UND BÜROSERVICE CHRISTINE SCHREMMER"]
[null,null,null,null,null,null,null,null,null,null,null,null,"CHRISTINE SCHREMMER, Odenwaldring 13, 63500 Seligenstadt "]
[null,null,null,null,null,null,null,null,null,null,null,null,"INFO@URLAUB-FERIEN-PLANUNG.DE"]
[]
[null,null,null,null,null,null,null,null,null,null,null,null,"2.2 WIDERRUFSFOLGEN"]
[null,null,null,null,null,null,null,null,null,null,null,null,"IM FALLE EINES WIRKSAMEN WIDERRUFS SIND DIE BEIDERSEITS EMPFANGENEN LEISTUNGEN ZURÜCKZUGEWÄHREN UND GGF. NUTZUNGEN (Z.B. ZINSEN) HERAUSZUGEBEN. KÖNNEN SIE UNS DIE EMPFANGENE LEISTUNG GANZ ODER TEILWEISE NICHT ODER NUR IN VERSCHLECHTERTEM ZUSTAND ZURÜCKGEWÄHREN, MÜSSEN SIE UNS INSOWEIT GGF. WERTERSATZ LEISTEN. BEI DER ÜBERLASSUNG VON SACHEN GILT DIES NICHT, WENN DIE VERSCHLECHTERUNG DER SACHE AUSSCHLIEßLICH AUF DEREN PRÜFUNG - WIE ES IHNEN ETWA IM LADENGESCHÄFT MÖGLICH GEWESEN WÄRE - ZURÜCKZUFÜHREN IST. IM ÜBRIGEN KÖNNEN SIE DIE WERTERSATZPFLICHT VERMEIDEN, INDEM SIE DIE SACHE NICHT WIE IHR EIGENTUM IN GEBRAUCH NEHMEN UND ALLES UNTERLASSEN, WAS DEREN WERT BEEINTRÄCHTIGT. PAKETVERSANDFÄHIGE SACHEN SIND ZURÜCKZUSENDEN. SIE HABEN DIE KOSTEN DER RÜCKSENDUNG ZU TRAGEN, WENN DIE GELIEFERTE WARE DER BESTELLTEN ENTSPRICHT UND WENN DER PREIS DER ZURÜCKZUSENDENDEN SACHE EINEN BETRAG VON EUR 40,00 NICHT ÜBERSTEIGT ODER WENN SIE BEI EINEM  HÖHEREN PREIS DER SACHE ZUM ZEITPUNKT DES WIDERRUFS NOCH NICHT DIE GEGENLEISTUNG ODER EINE VERTRAGLICH VEREINBARTE TEILZAHLUNG ERBRACHT HABEN. ANDERNFALLS IST DIE RÜCKSENDUNG FÜR SIE KOSTENFREI."]
[null,null,null,null,null,null,null,null,null,null,null,null,"VERPFLICHTUNGEN ZUR ERSTATTUNG VON ZAHLUNGEN MÜSSEN SIE INNERHALB VON 30 TAGEN NACH ABSENDUNG IHRER WIDERRUFSERKLÄRUNG ERFÜLLEN."]
[]
[null,null,null,null,null,null,null,null,null,null,null,null,"2.3 VORZEITIGES ERLÖSCHEN DES WIDERRUFSRECHTS"]
[null,null,null,null,null,null,null,null,null,null,null,null,"IHR WIDERRUFSRECHT ERLISCHT VORZEITIG, WENN WIR MIT DER AUSFÜHRUNG DER DIENSTLEISTUNG MIT IHRER AUSDRÜCKLICHEN ZUSTIMMUNG VOR ENDE DER WIDERRUFSFRIST BEGONNEN HABEN ODER SIE DIESE SELBST VERANLASST HABEN (Z.B. DURCH DOWNLOAD, ÜBERSENDUNG DES LIZENZSCHLÜSSELS)."]
[]
[null,null,null,null,null,null,null,null,null,null,null,null,"- ENDE DER WIDERRUFSBELEHRUNG -"]
[]
[]
[null,null,null,null,null,null,null,null,null,null,null,null,"3. Vertragsabschluss"]
[]
[null,null,null,null,null,null,null,null,null,null,null,null,"2014-01-03"]
[]
[null,null,null,null,null,null,null,null,null,null,null,null,"Demoversion - Begrenzungen beim:"]
[null,null,null,null,null,null,null,null,null,null,null,null,"- SL-Urlaubsplaner: Auf 2 Nutzerkonten, keine Zusatzfunktionen implementierbar"]
[]
[]
[null,null,null,null,null,null,null,null,null,null,null,null,"3.2   Der Download unserer Software bzw. deren Verkauf gegen eine Lizenzgebühr erfolgt in der Regel durch den Download über unsere Internetseite www.urlaub-ferien-planung.de. "]
[]
[null,null,null,null,null,null,null,null,null,null,null,null,"3.3   Die von uns angebotene Software wird entweder über unsere Partnerfirma „ShareIt! Digital River GmbH“ verkauft oder direkt durch Software und Büroservice Christine Schremmer. "]
[]
[null,null,null,null,null,null,null,null,null,null,null,null,"Im Falle des Downloads bzw. des Kaufs der kostenpflichtigen Vollversion durch die Partnerfirma „ShareIt! Digital River GmbH“, ist die „ShareIt! Digital River GmbH“ für die ordnungsgemäße Abwicklung der gesamten Bestellungs- und Lieferungsprozesse allein verantwortlich, es gelten deren Allgemeinen Geschäftsbedingungen, der Vertrag kommt mit „ShareIt! Digital River GmbH“ zustande und „ShareIt! Digital River GmbH“ ist der Verkäufer der Ware, d.h. der Lizenzschlüssel. Der Kunde erhält nach der Bestellung eine Rechnung der „ShareIt! Digital River GmbH“ über die bestellte Anzahl von Lizenzen. Durch die Zahlung des Rechnungsbetrages inklusive aller Überweisungsgebühren auf das in der Rechnung der genannte Konto erwirbt der Kunde das Recht, die Software auf seinem Rechner mit den zur Softwarefreischaltung benötigten gekauften Lizenzschlüssel zu installieren und unbefristet zu nutzen. Der Kunde erhält dann die für die uneingeschränkte Nutzung der Software erforderlichen Lizenzschlüssel bzw. Informationen von „ShareIt! Digital River GmbH“ darüber, wo die gekauften Lizenzschlüssel bzw. Informationen zur Freischaltung der Software heruntergeladen werden können."]
[]
[null,null,null,null,null,null,null,null,null,null,null,null,"Im Falle des Downloads bzw. des Kaufs der kostenpflichtigen Vollversion über Software und Büroservice Christine Schremmer erfolgt der Vertragsschluss in der Regel wie folgt. Nach Eingabe der notwendigen Bestelldaten und nach Anerkennung dieser Allgemeinen Geschäftsbedingungen, erhalten Sie von uns eine Email-Eingangsbestätigung über Ihre Bestellung. Diese Eingangsbestätigung stellt noch keine verbindliche Vertragsannahme durch uns dar, wir können sie jedoch mit der Auftragsbestätigung verbinden. "]
[]
[null,null,null,null,null,null,null,null,null,null,null,null,"Ihre erfolgte Bestellung unserer Software stellt ein verbindliches Angebot an uns gemäß Paragraph 145 BGB dar. Wir sind dabei berechtigt, Ihr Angebot durch Übersendung einer Auftragsbestätigung innerhalb von fünf Werktagen anzunehmen oder innerhalb dieser Frist die bestellte Software zuzusenden. "]
[]
[null,null,null,null,null,null,null,null,null,null,null,null,"Ein verbindlicher Kaufvertrag und damit eine Verpflichtung unsererseits zur Lieferung der bestellten Ware bzw. der Übersendung des Lizenzschlüssels, kommt erst mit unserer Auftragsbestätigung per E-Mail zustande. "]
[null,null,null,null,null,null,null,null,null,null,null,null,"Gemeinsam mit der Auftragsbestätigung übersenden wir Ihnen eine Rechnung. Erst nach entsprechendem Zahlungseingang bei uns, des in der Rechnung ausgewiesen Betrages (Lizenzgebühr), wird Ihnen für die bestellte Software, der den Kauf umfassende notwendige Lizenzschlüssel unverzüglich, in der Regel binnen drei Werktagen per E-Mail oder auf dem Postwege übersandt. Der Lizenzschlüssel umfasst dabei Ihre persönlichen Daten, die von Ihnen bestellte Versionsausstattung sowie etwaige bestellte Zusatzleistungen."]
[]
[]
[null,null,null,null,null,null,null,null,null,null,null,null,"4. Zahlung der Lizenzgebühr "]
[]
[null,null,null,null,null,null,null,null,null,null,null,null,"4.1   Im Falle des Downloads bzw. des Kaufs der kostenpflichtigen Software "]
[null,null,null,null,null,null,null,null,null,null,null,null,"sind Sie zur Zahlung einer Lizenzgebühr verpflichtet. Die Zahlung ist nach Auftragsbestätigung und Rechnungsübersendung per E-Mail binnen zehn Werktagen fällig."]
[]
[null,null,null,null,null,null,null,null,null,null,null,null,"Dabei ist die Zahlung auf eines der in der Bestell- bzw. Auftragsbestätigung angegebenen Konten ohne Abzug und im Falle eventuell anfallender Überweisungsgebühren (z.B. aus dem Ausland) kosten- und gebührenfrei an uns zu zahlen."]
[]
[null,null,null,null,null,null,null,null,null,null,null,null,"4.2   Die Höhe der Lizenzgebühr richtet sich nach der Programmversion und etwaiger von Ihnen zusätzlich gewünschter Leistungen. Die Preise für die einzelnen Nutzerkontenzahlen der Vollversion und die Zusatzleistungen können jederzeit auf unserer Internetseite abgerufen werden. Zudem werden Sie im Rahmen der Bestellung auf den jeweils zu zahlenden Betrag noch einmal hingewiesen. "]
[]
[null,null,null,null,null,null,null,null,null,null,null,null,"4.3   Kommen Sie mit Ihrer Zahlung in Verzug, so können wir Verzugszinsen in gesetzlicher Höhe geltend machen. Ihnen ist jedoch der Gegenbeweis gestattet, dass uns ein geringerer oder überhaupt kein Verzugsschaden entstanden ist als der von uns geltend gemachte."]
[]
[]
[null,null,null,null,null,null,null,null,null,null,null,null,"5. Eigentumsvorbehalt"]
[]
[null,null,null,null,null,null,null,null,null,null,null,null,"Wir behalten uns das Eigentum an der gelieferten Software, inklusive ihrer Datenträger bis zur vollständigen Bezahlung des Kaufpreises (Lizenzgebühr) vor."]
[]
[]
[null,null,null,null,null,null,null,null,null,null,null,null,"6. Mängelansprüche"]
[]
[null,null,null,null,null,null,null,null,null,null,null,null,"6.1   Mängel der gelieferten Software (Sach- und Rechtsmängel) werden von uns innerhalb der Mängelhaftungsfrist von zwei Jahren beginnend mit der Ablieferung, nach entsprechender Mitteilung, von uns behoben. Dies geschieht nach Ihrer Wahl durch kostenfreie Beseitigung des Mangels (Nachbesserung) oder durch Lieferung einer mangelfreien Software (Ersatzlieferung). Die zu diesem Zweck erforderlichen Aufwendungen werden von uns getragen, insbesondere Transport-, Wege-, Arbeits- und Materialkosten. "]
[]
[null,null,null,null,null,null,null,null,null,null,null,null,"6.2   Kann der Mangel nicht innerhalb angemessener Frist behoben werden oder ist die Nachbesserung oder Ersatzlieferung aus sonstigen Gründen als fehlgeschlagen anzusehen, können Sie nach Ihrer Wahl den Kaufpreis (Lizenzgebühr) herabsetzen (mindern), vom Vertrag zurücktreten, Schadensersatz oder Ersatz vergeblicher Aufwendungen verlangen. Die beiden letztgenannten Ansprüche regeln sich nach Ziffer 6 dieses Vertrages. Der Rücktritt vom Vertrag schließt das Recht auf Schadensersatz nicht aus."]
[]
[null,null,null,null,null,null,null,null,null,null,null,null,"6.3   Von einem Fehlschlagen der Nachbesserung oder Ersatzlieferung ist erst auszugehen, wenn uns hinreichende Gelegenheit (mindestens drei Versuche) zur Nachbesserung oder Ersatzlieferung eingeräumt wurde, ohne dass der gewünschte Erfolg erzielt wurde, wenn die Nachbesserung oder Ersatzlieferung unmöglich ist, wenn sie von uns verweigert oder unzumutbar verzögert wird, wenn begründete Zweifel hinsichtlich der Erfolgsaussichten bestehen oder wenn eine Unzumutbarkeit aus sonstigen Gründen vorliegt."]
[]
[]
[null,null,null,null,null,null,null,null,null,null,null,null,"7. Haftung"]
[]
[null,null,null,null,null,null,null,null,null,null,null,null,"7.1   Sofern Schadensersatzansprüche uns gegenüber geltend gemacht werden, haften wir nur für Vorsatz oder grobe Fahrlässigkeit, einschließlich des Vorsatzes oder der groben Fahrlässigkeit unserer gesetzlichen Vertreter oder Erfüllungsgehilfen. Unsere Haftung ist, außer bei Vorsatz und grober Fahrlässigkeit, auf den bei Vertragsabschluss typischerweise eintretenden vorhersehbaren Schaden begrenzt. "]
[]
[null,null,null,null,null,null,null,null,null,null,null,null,"7.2   Die Haftung für Datenverlust wird auf den typischen Wiederherstellungsaufwand beschränkt, der bei regelmäßiger und gefahrentsprechender Anfertigung von Sicherungskopien, insbesondere vor Einspielung von Updates, eingetreten wäre."]
[]
[null,null,null,null,null,null,null,null,null,null,null,null,"7.3   Sofern wir schuldhaft wesentliche Vertragspflichten (\"Kardinalpflichten\") verletzen, haften wir nach den gesetzlichen Bestimmungen; jedoch nur auf den bei Vertragsabschluss typischerweise eintretenden vorhersehbaren Schaden begrenzt. "]
[]
[null,null,null,null,null,null,null,null,null,null,null,null,"7.4   Für leichte Fahrlässigkeit haften wir nur, sofern wir eine Pflicht verletzen, deren Einhaltung für die Erreichung des Vertragszwecks von besonderer Bedeutung ist (\"Kardinalpflicht\"). Bei Verletzung einer solchen Pflicht ist unsere Haftung summenmäßig beschränkt auf das Fünffache der Lizenzgebühr sowie auf solche Schäden, mit deren Entstehung im Rahmen einer Softwareüberlassung typischerweise gerechnet werden muss."]
[]
[null,null,null,null,null,null,null,null,null,null,null,null,"7.5   Soweit nicht Vorstehend etwas Abweichendes geregelt ist, ist die Haftung ausgeschlossen."]
[]
[null,null,null,null,null,null,null,null,null,null,null,null,"7.6   Die Haftung nach dem Produkthaftungsgesetz bleibt unberührt (Paragraph 14 Produkthaftungsgesetz)."]
[]
[null,null,null,null,null,null,null,null,null,null,null,null,"7.7   Alle vorgenannten Haftungsausschlüsse und/oder Haftungsbegrenzungen gelten nicht für Schäden an Leben, Körper und Gesundheit von Menschen."]
[]
[]
[null,null,null,null,null,null,null,null,null,null,null,null,"8. Softwarelizenz"]
[]
[null,null,null,null,null,null,null,null,null,null,null,null,"Neben den Bestimmungen dieser allgemeinen Geschäftbedingungen gelten hinsichtlich der Ihnen gewährten Softwarelizenz, unsere allgemeinen Lizenzbedingungen. Diesen Bedingungen müssen Sie vor einem Download bzw. im Rahmen der Inbetriebnahme der Demo- bzw. Vollversion, also im Rahmen des Installationsvorganges, zustimmen. Die Lizenzbedingungen können von Ihnen zudem jederzeit auf unserer Internetseite eingesehen werden."]
[]
[]
[null,null,null,null,null,null,null,null,null,null,null,null,"9. Schutzrechte"]
[]
[null,null,null,null,null,null,null,null,null,null,null,null,"9.1   Die Software inklusive aller Softwarebestandteile, insbesondere die Datenbank bzw. die Datenbasis sowie sonstige Programm- und Datenbereiche sind urheberrechtlich geschützt. Das Urheberrecht umfasst insbesondere den Programmcode, die Dokumentation, das Erscheinungsbild, die Struktur und Organisation der Programmdateien, Logos und andere Darstellungsformen. "]
[]
[null,null,null,null,null,null,null,null,null,null,null,null,"2014-02-09"]
[]
[null,null,null,null,null,null,null,null,null,null,null,null,"Es ist Ihnen ebenfalls untersagt, den überlassenen Programmcode in andere Codeformen rückzuübersetzen (Dekompilierung). Auch sonstige Arten der Rückschließung der verschiedenen Herstellungsstufen unserer Software sind nicht gestattet. "]
[]
[null,null,null,null,null,null,null,null,null,null,null,null,"9.3   Die Werbebanner, Bilder und Texte sowie alle damit im Zusammenhang stehenden Leistungen und Produkte auf unserer Internetseite, unterliegen ebenfalls dem Urheberrecht und dürfen nur mit ausdrücklicher schriftlicher Genehmigung benutzt werden. "]
[]
[null,null,null,null,null,null,null,null,null,null,null,null,"9.4   Bei Zuwiderhandlungen werden diese von uns unter Ausschöpfung des geltenden Rechts verfolgt und geahndet."]
[]
[null,null,null,null,null,null,null,null,null,null,null,null,"9.5   Sofern wir wegen einer durch Sie verursachten Rechtsverletzung, z.B. durch die Logofreischaltung oder Logoeinstellung, von Dritten wegen möglicher Schutzrechtsverletzungen (z.B. Urheber-, Marken-, oder Namensrechte) in Anspruch genommen werden, sind Sie dazu verpflichtet, uns von sämtlichen dadurch entstandenen Schäden und/oder Kosten, insbesondere Rechtsverteidigungs- sowie Gerichtskosten, freizustellen."]
[]
[]
[null,null,null,null,null,null,null,null,null,null,null,null,"10. Datenschutzklausel"]
[]
[null,null,null,null,null,null,null,null,null,null,null,null,"10.1   Personenbezogene Daten, die Sie im Rahmen Ihrer Bestellung eingeben, werden für die Geschäftsabwicklung als auch für die Pflege unserer Kundenbeziehungen gespeichert. Vor Versendung der Bestellung haben Sie die Möglichkeit Ihre eingegebenen Daten über Ihren Internet Browser auszudrucken. Eine Weitergabe Ihrer Daten an Dritte erfolgt nur auf Aufforderung hin an staatlich berechtigte Stellen im Falle eines Missbrauchs. "]
[]
[null,null,null,null,null,null,null,null,null,null,null,null,"10.2   Sie können der Nutzung Ihrer Daten jederzeit gegenüber uns (per Post: Software und Büroservice Christine Schremmer, Odenwaldring 13, 63500 Seligenstadt; per Email: info@urlaub-ferien-planung.de) widersprechen. "]
[]
[null,null,null,null,null,null,null,null,null,null,null,null,"10.3   Widersprechen Sie der Nutzung Ihrer personenbezogenen Daten für die Dauer der Abwicklung der Software-Bestellung, haben wir das Recht vom Vertrag zurückzutreten."]
[]
[]
[null,null,null,null,null,null,null,null,null,null,null,null,"11. Anwendbares Recht / Gerichtsstand"]
[]
[null,null,null,null,null,null,null,null,null,null,null,null,"11.1   Dieser Vertrag unterliegt dem Recht der Bundesrepublik Deutschland. Das UN-Kaufrecht (Convention on contracts for the International Sale of Goods – CISG) wird ausgeschlossen."]
[]
[null,null,null,null,null,null,null,null,null,null,null,null,"11.2   Sofern Sie Kaufmann bzw. Unternehmer im Sinne von Paragraph 14 BGB sind, ist unser Geschäftssitz Gerichtsstand. Wir sind jedoch berechtigt, Sie auch an Ihrem Wohnsitzgericht zu verklagen."]
[]
[null,null,null,null,null,null,null,null,null,null,null,null,"11.3   Falls Sie Verbraucher im Sinne von Paragraph 13 BGB sind und nach Vertragsabschluss Ihren Wohnsitz oder gewöhnlichen Aufenthaltsort aus dem Geltungsbereich der Bundesrepublik Deutschland verlegen, ist unser Geschäftssitz Gerichtsstand. Dies gilt auch, falls Ihr Wohnsitz oder Ihr gewöhnlicher Aufenthalt im Zeitpunkt der Klageerhebung nicht bekannt ist."]
[]
[null,null,null,null,null,null,null,null,null,null,null,null,"11.4   Sollten einzelne Regelungen dieser Allgemeinen Geschäftsbedingungen ganz oder teilweise unwirksam sein oder werden, so bleiben die übrigen Bestimmungen hiervon unberührt. "]
[]
[null,null,null,null,null,null,null,null,null,null,null,null,"Stand: 08. Februar 2007"]

{"sheet":"Abteilungen","index":1,"n_rows":39,"n_cols":29,"rows_kept":39,"cut":false,"hidden":false,"merged":[[0,2,0,3]]}
["Abteilung",{"$f":"IF('Feiertage in den BL'!C1=\"\",'Feiertage in den BL'!E1,\"DemoFirma\")","v":"DemoFirma"},{"$f":"IF('Feiertage in den BL'!C1=\"\",'Feiertage in den BL'!F1,\"DemoAnschrift\")","v":"DemoAnschrift"},null,null,null,null,null,null,null,null,null,null,null,null,null,null,null,null,null,null,null,0]
["EDV",null,"keine Leerzeilen !",null,null,null,null,null,null,null,null,null,null,null,null,null,null,null,null,null,null,null,0]
["Büro",null,"keine Leerzeilen !"]
[null,null,"keine Leerzeilen !"]
[null,null,"keine Leerzeilen !"]
[null,null,"keine Leerzeilen !",null,null,null,null,null,null,null,null,null,null,null,null,null,null,null,null,null,null,null,null,null,null,null,null,null,1]
[null,null,"keine Leerzeilen !"]
[null,null,"keine Leerzeilen !"]
[null,null,"keine Leerzeilen !"]
[null,null,"keine Leerzeilen !"]
[null,null,"keine Leerzeilen !"]
[null,null,"keine Leerzeilen !"]
[null,null,"keine Leerzeilen !"]
[null,null,"keine Leerzeilen !"]
[null,null,"keine Leerzeilen !"]
[null,null,"keine Leerzeilen !"]
[null,null,"keine Leerzeilen !"]
[null,null,"keine Leerzeilen !"]
[null,null,"keine Leerzeilen !"]
[null,null,"keine Leerzeilen !"]
[null,null,"keine Leerzeilen !"]
[null,null,"keine Leerzeilen !"]
[null,null,"keine Leerzeilen !"]
[null,null,"keine Leerzeilen !"]
[null,null,"keine Leerzeilen !"]
[null,null,"keine Leerzeilen !"]
[null,null,"keine Leerzeilen !"]
[null,null,"keine Leerzeilen !"]
[null,null,"keine Leerzeilen !"]
[null,null,"keine Leerzeilen !"]
[null,null,"keine Leerzeilen !"]
[null,null,"keine Leerzeilen !"]
[null,null,"keine Leerzeilen !"]
[null,null,"keine Leerzeilen !"]
[null,null,"keine Leerzeilen !"]
[null,null,"keine Leerzeilen !"]
[null,null,"keine Leerzeilen !"]
[null,null,"keine Leerzeilen !"]
[null,null,"keine Leerzeilen !"]

{"sheet":"Namen","index":2,"n_rows":667,"n_cols":29,"rows_kept":667,"cut":false,"hidden":false,"merged":[[0,1,0,2]]}
[{"$f":"IF('Feiertage in den BL'!C1=\"\",'Feiertage in den BL'!E1,\"DemoFirma\")","v":"DemoFirma"},{"$f":"IF('Feiertage in den BL'!C1=\"\",'Feiertage in den BL'!F1,\"DemoAnschrift\")","v":"DemoAnschrift"},null,"                               Pfad zu den UP-Daten:",null,null,"C:\\Urlaubsplaner\\2016\\Version 2.16\\Deutschland\\sonstiges",null,null,null,null,null,null,null,null,null,null,null,null,null,null,null,0]
["Name, Vorname","Personal-Nr.","Abteilung","                               Dateiname:                             Name-Abteilung-Pers.Nr.xls",null,null,null,null,null,null,null,null,null,null,null,null,null,null,null,null,null,null,0]
["Mustermann",123456,null,"keine Leerzeilen !",null,null,null,null,null,null,null,null,null,null,null,null,null,null,null,null,null,null,0]
["Müller, Achim",456789,null,"keine Leerzeilen !"]
[null,null,null,"keine Leerzeilen !"]
[null,null,null,"keine Leerzeilen !",null,">  Jedem Mitarbeiter sollte eine Abteil. und eine Pers.-Nr. zugeordnet sein!",null,null,null,null,null,null,null,null,null,null,null,null,null,null,null,null,null,null,null,null,null,null,1]
[null,null,null,"keine Leerzeilen !",null,">  Bitte von Hand aktualisieren, siehe \"Bedienungsanleitung\" !"]
[null,null,null,"keine Leerzeilen !"]
[null,null,null,"keine Leerzeilen !"]
[null,null,null,"keine Leerzeilen !"]
[null,null,null,"keine Leerzeilen !"]
[null,null,null,"keine Leerzeilen !"]
[null,null,null,"keine Leerzeilen !"]
[null,null,null,"keine Leerzeilen !"]
[null,null,null,"keine Leerzeilen !"]
[null,null,null,"keine Leerzeilen !"]
[null,null,null,"keine Leerzeilen !"]
[null,null,null,"keine Leerzeilen !"]
[null,null,null,"keine Leerzeilen !"]
[null,null,null,"keine Leerzeilen !"]
[null,null,null,"keine Leerzeilen !"]
[null,null,null,"keine Leerzeilen !"]
[null,null,null,"keine Leerzeilen !"]
[null,null,null,"keine Leerzeilen !"]
[null,null,null,"keine Leerzeilen !"]
[null,null,null,"keine Leerzeilen !"]
[null,null,null,"keine Leerzeilen !"]
[null,null,null,"keine Leerzeilen !"]
[null,null,null,"keine Leerzeilen !"]
[null,null,null,"keine Leerzeilen !"]
[null,null,null,"keine Leerzeilen !"]
[null,null,null,"keine Leerzeilen !"]
[null,null,null,"keine Leerzeilen !"]
[null,null,null,"keine Leerzeilen !"]
[null,null,null,"keine Leerzeilen !"]
[null,null,null,"keine Leerzeilen !"]
[null,null,null,"keine Leerzeilen !"]
[null,null,null,"keine Leerzeilen !"]
[null,null,null,"keine Leerzeilen !"]
[null,null,null,"keine Leerzeilen !"]
[null,null,null,"keine Leerzeilen !"]
[null,null,null,"keine Leerzeilen !"]
[null,null,null,"keine Leerzeilen !",null,null,null,null,null,null,null,null,null,null,null,null,null,null,null,null,null,null,null,null,null,null,null,"C o p y  ri gh t   S o f  t w a r e  und  B ü  r o s e r v.  Ch r i s t i n e  S c h r e m  m er   S e l ig e n  st a d t"]
[null,null,null,"keine Leerzeilen !"]
[null,null,null,"keine Leerzeilen !"]
[null,null,null,"keine Leerzeilen !"]
[null,null,null,"keine Leerzeilen !"]
[null,null,null,"keine Leerzeilen !"]
[null,null,null,"keine Leerzeilen !"]
[null,null,null,"keine Leerzeilen !"]
[null,null,null,"keine Leerzeilen !"]
[null,null,null,"keine Leerzeilen !"]
[null,null,null,"keine Leerzeilen !"]
[null,null,null,"keine Leerzeilen !"]
[null,null,null,"keine Leerzeilen !"]
[null,null,null,"keine Leerzeilen !"]
[null,null,null,"keine Leerzeilen !"]
[null,null,null,"keine Leerzeilen !"]
[null,null,null,"keine Leerzeilen !"]
[null,null,null,"keine Leerzeilen !"]
[null,null,null,"keine Leerzeilen !"]
[null,null,null,"keine Leerzeilen !"]
[null,null,null,"keine Leerzeilen !"]
[null,null,null,"keine Leerzeilen !"]
[null,null,null,"keine Leerzeilen !"]
[null,null,null,"keine Leerzeilen !"]
[null,null,null,"keine Leerzeilen !"]
[null,null,null,"keine Leerzeilen !"]
[null,null,null,"keine Leerzeilen !"]
[null,null,null,"keine Leerzeilen !"]
[null,null,null,"keine Leerzeilen !"]
[null,null,null,"keine Leerzeilen !"]
[null,null,null,"keine Leerzeilen !"]
[null,null,null,"keine Leerzeilen !"]
[null,null,null,"keine Leerzeilen !"]
[null,null,null,"keine Leerzeilen !"]
[null,null,null,"keine Leerzeilen !"]
[null,null,null,"keine Leerzeilen !"]
[null,null,null,"keine Leerzeilen !"]
[null,null,null,"keine Leerzeilen !"]
[null,null,null,"keine Leerzeilen !"]
[null,null,null,"keine Leerzeilen !"]
[null,null,null,"keine Leerzeilen !"]
[null,null,null,"keine Leerzeilen !"]
[null,null,null,"keine Leerzeilen !"]
[null,null,null,"keine Leerzeilen !"]
[null,null,null,"keine Leerzeilen !"]
[null,null,null,"keine Leerzeilen !"]
[null,null,null,"keine Leerzeilen !"]
[null,null,null,"keine Leerzeilen !"]
[null,null,null,"keine Leerzeilen !"]
[null,null,null,"keine Leerzeilen !"]
[null,null,null,"keine Leerzeilen !"]
[null,null,null,"keine Leerzeilen !"]
[null,null,null,"keine Leerzeilen !"]
[null,null,null,"keine Leerzeilen !"]
[null,null,null,"keine Leerzeilen !"]
[null,null,null,"keine Leerzeilen !"]
[null,null,null,"keine Leerzeilen !"]
[null,null,null,"keine Leerzeilen !"]
[null,null,null,"keine Leerzeilen !"]
[null,null,null,"keine Leerzeilen !"]
[null,null,null,"keine Leerzeilen !"]
[null,null,null,"keine Leerzeilen !"]
[null,null,null,"keine Leerzeilen !"]
[null,null,null,"keine Leerzeilen !"]
[null,null,null,"keine Leerzeilen !"]
[null,null,null,"keine Leerzeilen !"]
[null,null,null,"keine Leerzeilen !"]
[null,null,null,"keine Leerzeilen !"]
[null,null,null,"keine Leerzeilen !"]
[null,null,null,"keine Leerzeilen !"]
[null,null,null,"keine Leerzeilen !"]
[null,null,null,"keine Leerzeilen !"]
[null,null,null,"keine Leerzeilen !"]
[null,null,null,"keine Leerzeilen !"]
[null,null,null,"keine Leerzeilen !"]
[null,null,null,"keine Leerzeilen !"]
[null,null,null,"keine Leerzeilen !"]
[null,null,null,"keine Leerzeilen !"]
[null,null,null,"keine Leerzeilen !"]
[null,null,null,"keine Leerzeilen !"]
[null,null,null,"keine Leerzeilen !"]
[null,null,null,"keine Leerzeilen !"]
[null,null,null,"keine Leerzeilen !"]
[null,null,null,"keine Leerzeilen !"]
[null,null,null,"keine Leerzeilen !"]
[null,null,null,"keine Leerzeilen !"]
[null,null,null,"keine Leerzeilen !"]
[null,null,null,"keine Leerzeilen !"]
[null,null,null,"keine Leerzeilen !"]
[null,null,null,"keine Leerzeilen !"]
[null,null,null,"keine Leerzeilen !"]
[null,null,null,"keine Leerzeilen !"]
[null,null,null,"keine Leerzeilen !"]
[null,null,null,"keine Leerzeilen !"]
[null,null,null,"keine Leerzeilen !"]
[null,null,null,"keine Leerzeilen !"]
[null,null,null,"keine Leerzeilen !"]
[null,null,null,"keine Leerzeilen !"]
[null,null,null,"keine Leerzeilen !"]
[null,null,null,"keine Leerzeilen !"]
[null,null,null,"keine Leerzeilen !"]
[null,null,null,"keine Leerzeilen !"]
[null,null,null,"keine Leerzeilen !"]
[null,null,null,"keine Leerzeilen !"]
[null,null,null,"keine Leerzeilen !"]
[null,null,null,"keine Leerzeilen !"]
[null,null,null,"keine Leerzeilen !"]
[null,null,null,"keine Leerzeilen !"]
[null,null,null,"keine Leerzeilen !"]
[null,null,null,"keine Leerzeilen !"]
[null,null,null,"keine Leerzeilen !"]
[null,null,null,"keine Leerzeilen !"]
[null,null,null,"keine Leerzeilen !"]
[null,null,null,"keine Leerzeilen !"]
[null,null,null,"keine Leerzeilen !"]
[null,null,null,"keine Leerzeilen !"]
[null,null,null,"keine Leerzeilen !"]
[null,null,null,"keine Leerzeilen !"]
[null,null,null,"keine Leerzeilen !"]
[null,null,null,"keine Leerzeilen !"]
[null,null,null,"keine Leerzeilen !"]
[null,null,null,"keine Leerzeilen !"]
[null,null,null,"keine Leerzeilen !"]
[null,null,null,"keine Leerzeilen !"]
[null,null,null,"keine Leerzeilen !"]
[null,null,null,"keine Leerzeilen !"]
[null,null,null,"keine Leerzeilen !"]
[null,null,null,"keine Leerzeilen !"]
[null,null,null,"keine Leerzeilen !"]
[null,null,null,"keine Leerzeilen !"]
[null,null,null,"keine Leerzeilen !"]
[null,null,null,"keine Leerzeilen !"]
[null,null,null,"keine Leerzeilen !"]
[null,null,null,"keine Leerzeilen !"]
[null,null,null,"keine Leerzeilen !"]
[null,null,null,"keine Leerzeilen !"]
[null,null,null,"keine Leerzeilen !"]
[null,null,null,"keine Leerzeilen !"]
[null,null,null,"keine Leerzeilen !"]
[null,null,null,"keine Leerzeilen !"]
[null,null,null,"keine Leerzeilen !"]
[null,null,null,"keine Leerzeilen !"]
[null,null,null,"keine Leerzeilen !"]
[null,null,null,"keine Leerzeilen !"]
[null,null,null,"keine Leerzeilen !"]
[null,null,null,"keine Leerzeilen !"]
[null,null,null,"keine Leerzeilen !"]
[null,null,null,"keine Leerzeilen !"]
[null,null,null,"keine Leerzeilen !"]
[null,null,null,"keine Leerzeilen !"]
[null,null,null,"keine Leerzeilen !"]
[null,null,null,"keine Leerzeilen !"]
[null,null,null,"keine Leerzeilen !"]
[null,null,null,"keine Leerzeilen !"]
[null,null,null,"keine Leerzeilen !"]
[null,null,null,"keine Leerzeilen !"]
[null,null,null,"keine Leerzeilen !"]
[null,null,null,"keine Leerzeilen !"]
[null,null,null,"keine Leerzeilen !"]
[null,null,null,"keine Leerzeilen !"]
[null,null,null,"keine Leerzeilen !"]
[null,null,null,"keine Leerzeilen !"]
[null,null,null,"keine Leerzeilen !"]
[null,null,null,"keine Leerzeilen !"]
[null,null,null,"keine Leerzeilen !"]
[null,null,null,"keine Leerzeilen !"]
[null,null,null,"keine Leerzeilen !"]
[null,null,null,"keine Leerzeilen !"]
[null,null,null,"keine Leerzeilen !"]
[null,null,null,"keine Leerzeilen !"]
[null,null,null,"keine Leerzeilen !"]
[null,null,null,"keine Leerzeilen !"]
[null,null,null,"keine Leerzeilen !"]
[null,null,null,"keine Leerzeilen !"]
[null,null,null,"keine Leerzeilen !"]
[null,null,null,"keine Leerzeilen !"]
[null,null,null,"keine Leerzeilen !"]
[null,null,null,"keine Leerzeilen !"]
[null,null,null,"keine Leerzeilen !"]
[null,null,null,"keine Leerzeilen !"]
[null,null,null,"keine Leerzeilen !"]
[null,null,null,"keine Leerzeilen !"]
[null,null,null,"keine Leerzeilen !"]
[null,null,null,"keine Leerzeilen !"]
[null,null,null,"keine Leerzeilen !"]
[null,null,null,"keine Leerzeilen !"]
[null,null,null,"keine Leerzeilen !"]
[null,null,null,"keine Leerzeilen !"]
[null,null,null,"keine Leerzeilen !"]
[null,null,null,"keine Leerzeilen !"]
[null,null,null,"keine Leerzeilen !"]
[null,null,null,"keine Leerzeilen !"]
[null,null,null,"keine Leerzeilen !"]
[null,null,null,"keine Leerzeilen !"]
[null,null,null,"keine Leerzeilen !"]
[null,null,null,"keine Leerzeilen !"]
[null,null,null,"keine Leerzeilen !"]
[null,null,null,"keine Leerzeilen !"]
[null,null,null,"keine Leerzeilen !"]
[null,null,null,"keine Leerzeilen !"]
[null,null,null,"keine Leerzeilen !"]
[null,null,null,"keine Leerzeilen !"]
[null,null,null,"keine Leerzeilen !"]
[null,null,null,"keine Leerzeilen !"]
[null,null,null,"keine Leerzeilen !"]
[null,null,null,"keine Leerzeilen !"]
[null,null,null,"keine Leerzeilen !"]
[null,null,null,"keine Leerzeilen !"]
[null,null,null,"keine Leerzeilen !"]
[null,null,null,"keine Leerzeilen !"]
[null,null,null,"keine Leerzeilen !"]
[null,null,null,"keine Leerzeilen !"]
[null,null,null,"keine Leerzeilen !"]
[null,null,null,"keine Leerzeilen !"]
[null,null,null,"keine Leerzeilen !"]
[null,null,null,"keine Leerzeilen !"]
[null,null,null,"keine Leerzeilen !"]
[null,null,null,"keine Leerzeilen !"]
[null,null,null,"keine Leerzeilen !"]
[null,null,null,"keine Leerzeilen !"]
[null,null,null,"keine Leerzeilen !"]
[null,null,null,"keine Leerzeilen !"]
[null,null,null,"keine Leerzeilen !"]
[null,null,null,"keine Leerzeilen !"]
[null,null,null,"keine Leerzeilen !"]
[null,null,null,"keine Leerzeilen !"]
[null,null,null,"keine Leerzeilen !"]
[null,null,null,"keine Leerzeilen !"]
[null,null,null,"keine Leerzeilen !"]
[null,null,null,"keine Leerzeilen !"]
[null,null,null,"keine Leerzeilen !"]
[null,null,null,"keine Leerzeilen !"]
[null,null,null,"keine Leerzeilen !"]
[null,null,null,"keine Leerzeilen !"]
[null,null,null,"keine Leerzeilen !"]
[null,null,null,"keine Leerzeilen !"]
[null,null,null,"keine Leerzeilen !"]
[null,null,null,"keine Leerzeilen !"]
[null,null,null,"keine Leerzeilen !"]
[null,null,null,"keine Leerzeilen !"]
[null,null,null,"keine Leerzeilen !"]
[null,null,null,"keine Leerzeilen !"]
[null,null,null,"keine Leerzeilen !"]
[null,null,null,"keine Leerzeilen !"]
[null,null,null,"keine Leerzeilen !"]
[null,null,null,"keine Leerzeilen !"]
[null,null,null,"keine Leerzeilen !"]
[null,null,null,"keine Leerzeilen !"]
[null,null,null,"keine Leerzeilen !"]
[null,null,null,"keine Leerzeilen !"]
[null,null,null,"keine Leerzeilen !"]
[null,null,null,"keine Leerzeilen !"]
[null,null,null,"keine Leerzeilen !"]
[null,null,null,"keine Leerzeilen !"]
[null,null,null,"keine Leerzeilen !"]
[null,null,null,"keine Leerzeilen !"]
[null,null,null,"keine Leerzeilen !"]
[null,null,null,"keine Leerzeilen !"]
[null,null,null,"keine Leerzeilen !"]
[null,null,null,"keine Leerzeilen !"]
[null,null,null,"keine Leerzeilen !"]
[null,null,null,"keine Leerzeilen !"]
[null,null,null,"keine Leerzeilen !"]
[null,null,null,"keine Leerzeilen !"]
[null,null,null,"keine Leerzeilen !"]
[null,null,null,"keine Leerzeilen !"]
[null,null,null,"keine Leerzeilen !"]
[null,null,null,"keine Leerzeilen !"]
[null,null,null,"keine Leerzeilen !"]
[null,null,null,"keine Leerzeilen !"]
[null,null,null,"keine Leerzeilen !"]
[null,null,null,"keine Leerzeilen !"]
[null,null,null,"keine Leerzeilen !"]
[null,null,null,"keine Leerzeilen !"]
[null,null,null,"keine Leerzeilen !"]
[null,null,null,"keine Leerzeilen !"]
[null,null,null,"keine Leerzeilen !"]
[null,null,null,"keine Leerzeilen !"]
[null,null,null,"keine Leerzeilen !"]
[null,null,null,"keine Leerzeilen !"]
[null,null,null,"keine Leerzeilen !"]
[null,null,null,"keine Leerzeilen !"]
[null,null,null,"keine Leerzeilen !"]
[null,null,null,"keine Leerzeilen !"]
[null,null,null,"keine Leerzeilen !"]
[null,null,null,"keine Leerzeilen !"]
[null,null,null,"keine Leerzeilen !"]
[null,null,null,"keine Leerzeilen !"]
[null,null,null,"keine Leerzeilen !"]
[null,null,null,"keine Leerzeilen !"]
[null,null,null,"keine Leerzeilen !"]
[null,null,null,"keine Leerzeilen !"]
[null,null,null,"keine Leerzeilen !"]
[null,null,null,"keine Leerzeilen !"]
[null,null,null,"keine Leerzeilen !"]
[null,null,null,"keine Leerzeilen !"]
[null,null,null,"keine Leerzeilen !"]
[null,null,null,"keine Leerzeilen !"]
[null,null,null,"keine Leerzeilen !"]
[null,null,null,"keine Leerzeilen !"]
[null,null,null,"keine Leerzeilen !"]
[null,null,null,"keine Leerzeilen !"]
[null,null,null,"keine Leerzeilen !"]
[null,null,null,"keine Leerzeilen !"]
[null,null,null,"keine Leerzeilen !"]
[null,null,null,"keine Leerzeilen !"]
[null,null,null,"keine Leerzeilen !"]
[null,null,null,"keine Leerzeilen !"]
[null,null,null,"keine Leerzeilen !"]
[null,null,null,"keine Leerzeilen !"]
[null,null,null,"keine Leerzeilen !"]
[null,null,null,"keine Leerzeilen !"]
[null,null,null,"keine Leerzeilen !"]
[null,null,null,"keine Leerzeilen !"]
[null,null,null,"keine Leerzeilen !"]
[null,null,null,"keine Leerzeilen !"]
[null,null,null,"keine Leerzeilen !"]
[null,null,null,"keine Leerzeilen !"]
[null,null,null,"keine Leerzeilen !"]
[null,null,null,"keine Leerzeilen !"]
[null,null,null,"keine Leerzeilen !"]
[null,null,null,"keine Leerzeilen !"]
[null,null,null,"keine Leerzeilen !"]
[null,null,null,"keine Leerzeilen !"]
[null,null,null,"keine Leerzeilen !"]
[null,null,null,"keine Leerzeilen !"]
[null,null,null,"keine Leerzeilen !"]
[null,null,null,"keine Leerzeilen !"]
[null,null,null,"keine Leerzeilen !"]
[null,null,null,"keine Leerzeilen !"]
[null,null,null,"keine Leerzeilen !"]
[null,null,null,"keine Leerzeilen !"]
[null,null,null,"keine Leerzeilen !"]
[null,null,null,"keine Leerzeilen !"]
[null,null,null,"keine Leerzeilen !"]
[null,null,null,"keine Leerzeilen !"]
[null,null,null,"keine Leerzeilen !"]
[null,null,null,"keine Leerzeilen !"]
[null,null,null,"keine Leerzeilen !"]
[null,null,null,"keine Leerzeilen !"]
[null,null,null,"keine Leerzeilen !"]
[null,null,null,"keine Leerzeilen !"]
[null,null,null,"keine Leerzeilen !"]
[null,null,null,"keine Leerzeilen !"]
[null,null,null,"keine Leerzeilen !"]
[null,null,null,"keine Leerzeilen !"]
[null,null,null,"keine Leerzeilen !"]
[null,null,null,"keine Leerzeilen !"]
[null,null,null,"keine Leerzeilen !"]
[null,null,null,"keine Leerzeilen !"]
[null,null,null,"keine Leerzeilen !"]
[null,null,null,"keine Leerzeilen !"]
[null,null,null,"keine Leerzeilen !"]
[null,null,null,"keine Leerzeilen !"]
[null,null,null,"keine Leerzeilen !"]
[null,null,null,"keine Leerzeilen !"]
[null,null,null,"keine Leerzeilen !"]
[null,null,null,"keine Leerzeilen !"]
[null,null,null,"keine Leerzeilen !"]
[null,null,null,"keine Leerzeilen !"]
[null,null,null,"keine Leerzeilen !"]
[null,null,null,"keine Leerzeilen !"]
[null,null,null,"keine Leerzeilen !"]
[null,null,null,"keine Leerzeilen !"]
[null,null,null,"keine Leerzeilen !"]
[null,null,null,"keine Leerzeilen !"]
[null,null,null,"keine Leerzeilen !"]
[null,null,null,"keine Leerzeilen !"]
[null,null,null,"keine Leerzeilen !"]
[null,null,null,"keine Leerzeilen !"]
[null,null,null,"keine Leerzeilen !"]
[null,null,null,"keine Leerzeilen !"]
[null,null,null,"keine Leerzeilen !"]
[null,null,null,"keine Leerzeilen !"]
[null,null,null,"keine Leerzeilen !"]
[null,null,null,"keine Leerzeilen !"]
[null,null,null,"keine Leerzeilen !"]
[null,null,null,"keine Leerzeilen !"]
[null,null,null,"keine Leerzeilen !"]
[null,null,null,"keine Leerzeilen !"]
[null,null,null,"keine Leerzeilen !"]
[null,null,null,"keine Leerzeilen !"]
[null,null,null,"keine Leerzeilen !"]
[null,null,null,"keine Leerzeilen !"]
[null,null,null,"keine Leerzeilen !"]
[null,null,null,"keine Leerzeilen !"]
[null,null,null,"keine Leerzeilen !"]
[null,null,null,"keine Leerzeilen !"]
[null,null,null,"keine Leerzeilen !"]
[null,null,null,"keine Leerzeilen !"]
[null,null,null,"keine Leerzeilen !"]
[null,null,null,"keine Leerzeilen !"]
[null,null,null,"keine Leerzeilen !"]
[null,null,null,"keine Leerzeilen !"]
[null,null,null,"keine Leerzeilen !"]
[null,null,null,"keine Leerzeilen !"]
[null,null,null,"keine Leerzeilen !"]
[null,null,null,"keine Leerzeilen !"]
[null,null,null,"keine Leerzeilen !"]
[null,null,null,"keine Leerzeilen !"]
[null,null,null,"keine Leerzeilen !"]
[null,null,null,"keine Leerzeilen !"]
[null,null,null,"keine Leerzeilen !"]
[null,null,null,"keine Leerzeilen !"]
[null,null,null,"keine Leerzeilen !"]
[null,null,null,"keine Leerzeilen !"]
[null,null,null,"keine Leerzeilen !"]
[null,null,null,"keine Leerzeilen !"]
[null,null,null,"keine Leerzeilen !"]
[null,null,null,"keine Leerzeilen !"]
[null,null,null,"keine Leerzeilen !"]
[null,null,null,"keine Leerzeilen !"]
[null,null,null,"keine Leerzeilen !"]
[null,null,null,"keine Leerzeilen !"]
[null,null,null,"keine Leerzeilen !"]
[null,null,null,"keine Leerzeilen !"]
[null,null,null,"keine Leerzeilen !"]
[null,null,null,"keine Leerzeilen !"]
[null,null,null,"keine Leerzeilen !"]
[null,null,null,"keine Leerzeilen !"]
[null,null,null,"keine Leerzeilen !"]
[null,null,null,"keine Leerzeilen !"]
[null,null,null,"keine Leerzeilen !"]
[null,null,null,"keine Leerzeilen !"]
[null,null,null,"keine Leerzeilen !"]
[null,null,null,"keine Leerzeilen !"]
[null,null,null,"keine Leerzeilen !"]
[null,null,null,"keine Leerzeilen !"]
[null,null,null,"keine Leerzeilen !"]
[null,null,null,"keine Leerzeilen !"]
[null,null,null,"keine Leerzeilen !"]
[null,null,null,"keine Leerzeilen !"]
[null,null,null,"keine Leerzeilen !"]
[null,null,null,"keine Leerzeilen !"]
[null,null,null,"keine Leerzeilen !"]
[null,null,null,"keine Leerzeilen !"]
[null,null,null,"keine Leerzeilen !"]
[null,null,null,"keine Leerzeilen !"]
[null,null,null,"keine Leerzeilen !"]
[null,null,null,"keine Leerzeilen !"]
[null,null,null,"keine Leerzeilen !"]
[null,null,null,"keine Leerzeilen !"]
[null,null,null,"keine Leerzeilen !"]
[null,null,null,"keine Leerzeilen !"]
[null,null,null,"keine Leerzeilen !"]
[null,null,null,"keine Leerzeilen !"]
[null,null,null,"keine Leerzeilen !"]
[null,null,null,"keine Leerzeilen !"]
[null,null,null,"keine Leerzeilen !"]
[null,null,null,"keine Leerzeilen !"]
[null,null,null,"keine Leerzeilen !"]
[null,null,null,"keine Leerzeilen !"]
[null,null,null,"keine Leerzeilen !"]
[null,null,null,"keine Leerzeilen !"]
[null,null,null,"keine Leerzeilen !"]
[null,null,null,"keine Leerzeilen !"]
[null,null,null,"keine Leerzeilen !"]
[null,null,null,"keine Leerzeilen !"]
[null,null,null,"keine Leerzeilen !"]
[null,null,null,"keine Leerzeilen !"]
[null,null,null,"keine Leerzeilen !"]
[null,null,null,"keine Leerzeilen !"]
[null,null,null,"keine Leerzeilen !"]
[null,null,null,"keine Leerzeilen !"]
[null,null,null,"keine Leerzeilen !"]
[null,null,null,"keine Leerzeilen !"]
[null,null,null,"keine Leerzeilen !"]
[null,null,null,"keine Leerzeilen !"]
[null,null,null,"keine Leerzeilen !"]
[null,null,null,"keine Leerzeilen !"]
[null,null,null,"keine Leerzeilen !"]
[null,null,null,"keine Leerzeilen !"]
[null,null,null,"keine Leerzeilen !"]
[null,null,null,"keine Leerzeilen !"]
[null,null,null,"keine Leerzeilen !"]
[null,null,null,"keine Leerzeilen !"]
[null,null,null,"keine Leerzeilen !"]
[null,null,null,"keine Leerzeilen !"]
[null,null,null,"keine Leerzeilen !"]
[null,null,null,"keine Leerzeilen !"]
[null,null,null,"keine Leerzeilen !"]
[null,null,null,"keine Leerzeilen !"]
[null,null,null,"keine Leerzeilen !"]
[null,null,null,"keine Leerzeilen !"]
[null,null,null,"keine Leerzeilen !"]
[null,null,null,"keine Leerzeilen !"]
[null,null,null,"keine Leerzeilen !"]
[null,null,null,"keine Leerzeilen !"]
[null,null,null,"keine Leerzeilen !"]
[null,null,null,"keine Leerzeilen !"]
[null,null,null,"keine Leerzeilen !"]
[null,null,null,"keine Leerzeilen !"]
[null,null,null,"keine Leerzeilen !"]
[null,null,null,"keine Leerzeilen !"]
[null,null,null,"keine Leerzeilen !"]
[null,null,null,"keine Leerzeilen !"]
[null,null,null,"keine Leerzeilen !"]
[null,null,null,"keine Leerzeilen !"]
[null,null,null,"keine Leerzeilen !"]
[null,null,null,"keine Leerzeilen !"]
[null,null,null,"keine Leerzeilen !"]
[null,null,null,"keine Leerzeilen !"]
[null,null,null,"keine Leerzeilen !"]
[null,null,null,"keine Leerzeilen !"]
[null,null,null,"keine Leerzeilen !"]
[null,null,null,"keine Leerzeilen !"]
[null,null,null,"keine Leerzeilen !"]
[null,null,null,"keine Leerzeilen !"]
[null,null,null,"keine Leerzeilen !"]
[null,null,null,"keine Leerzeilen !"]
[null,null,null,"keine Leerzeilen !"]
[null,null,null,"keine Leerzeilen !"]
[null,null,null,"keine Leerzeilen !"]
[null,null,null,"keine Leerzeilen !"]
[null,null,null,"keine Leerzeilen !"]
[null,null,null,"keine Leerzeilen !"]
[null,null,null,"keine Leerzeilen !"]
[null,null,null,"keine Leerzeilen !"]
[null,null,null,"keine Leerzeilen !"]
[null,null,null,"keine Leerzeilen !"]
[null,null,null,"keine Leerzeilen !"]
[null,null,null,"keine Leerzeilen !"]
[null,null,null,"keine Leerzeilen !"]
[null,null,null,"keine Leerzeilen !"]
[null,null,null,"keine Leerzeilen !"]
[null,null,null,"keine Leerzeilen !"]
[null,null,null,"keine Leerzeilen !"]
[null,null,null,"keine Leerzeilen !"]
[null,null,null,"keine Leerzeilen !"]
[null,null,null,"keine Leerzeilen !"]
[null,null,null,"keine Leerzeilen !"]
[null,null,null,"keine Leerzeilen !"]
[null,null,null,"keine Leerzeilen !"]
[null,null,null,"keine Leerzeilen !"]
[null,null,null,"keine Leerzeilen !"]
[null,null,null,"keine Leerzeilen !"]
[null,null,null,"keine Leerzeilen !"]
[null,null,null,"keine Leerzeilen !"]
[null,null,null,"keine Leerzeilen !"]
[null,null,null,"keine Leerzeilen !"]
[null,null,null,"keine Leerzeilen !"]
[null,null,null,"keine Leerzeilen !"]
[null,null,null,"keine Leerzeilen !"]
[null,null,null,"keine Leerzeilen !"]
[null,null,null,"keine Leerzeilen !"]
[null,null,null,"keine Leerzeilen !"]
[null,null,null,"keine Leerzeilen !"]
[null,null,null,"keine Leerzeilen !"]
[null,null,null,"keine Leerzeilen !"]
[null,null,null,"keine Leerzeilen !"]
[null,null,null,"keine Leerzeilen !"]
[null,null,null,"keine Leerzeilen !"]
[null,null,null,"keine Leerzeilen !"]
[null,null,null,"keine Leerzeilen !"]
[null,null,null,"keine Leerzeilen !"]
[null,null,null,"keine Leerzeilen !"]
[null,null,null,"keine Leerzeilen !"]
[null,null,null,"keine Leerzeilen !"]
[null,null,null,"keine Leerzeilen !"]
[null,null,null,"keine Leerzeilen !"]
[null,null,null,"keine Leerzeilen !"]
[null,null,null,"keine Leerzeilen !"]
[null,null,null,"keine Leerzeilen !"]
[null,null,null,"keine Leerzeilen !"]
[null,null,null,"keine Leerzeilen !"]
[null,null,null,"keine Leerzeilen !"]
[null,null,null,"keine Leerzeilen !"]
[null,null,null,"keine Leerzeilen !"]
[null,null,null,"keine Leerzeilen !"]
[null,null,null,"keine Leerzeilen !"]
[null,null,null,"keine Leerzeilen !"]
[null,null,null,"keine Leerzeilen !"]
[null,null,null,"keine Leerzeilen !"]
[null,null,null,"keine Leerzeilen !"]
[null,null,null,"keine Leerzeilen !"]
[null,null,null,"keine Leerzeilen !"]
[null,null,null,"keine Leerzeilen !"]
[null,null,null,"keine Leerzeilen !"]
[null,null,null,"keine Leerzeilen !"]
[null,null,null,"keine Leerzeilen !"]
[null,null,null,"keine Leerzeilen !"]
[null,null,null,"keine Leerzeilen !"]
[null,null,null,"keine Leerzeilen !"]
[null,null,null,"keine Leerzeilen !"]
[null,null,null,"keine Leerzeilen !"]
[null,null,null,"keine Leerzeilen !"]
[null,null,null,"keine Leerzeilen !"]
[null,null,null,"keine Leerzeilen !"]
[null,null,null,"keine Leerzeilen !"]
[null,null,null,"keine Leerzeilen !"]
[null,null,null,"keine Leerzeilen !"]
[null,null,null,"keine Leerzeilen !"]
[null,null,null,"keine Leerzeilen !"]
[null,null,null,"keine Leerzeilen !"]
[null,null,null,"keine Leerzeilen !"]
[null,null,null,"keine Leerzeilen !"]
[null,null,null,"keine Leerzeilen !"]
[null,null,null,"keine Leerzeilen !"]
[null,null,null,"keine Leerzeilen !"]
[null,null,null,"keine Leerzeilen !"]
[null,null,null,"keine Leerzeilen !"]
[null,null,null,"keine Leerzeilen !"]
[null,null,null,"keine Leerzeilen !"]
[null,null,null,"keine Leerzeilen !"]
[null,null,null,"keine Leerzeilen !"]
[null,null,null,"keine Leerzeilen !"]
[null,null,null,"keine Leerzeilen !"]
[null,null,null,"keine Leerzeilen !"]
[null,null,null,"keine Leerzeilen !"]
[null,null,null,"keine Leerzeilen !"]
[null,null,null,"keine Leerzeilen !"]
[null,null,null,"keine Leerzeilen !"]
[null,null,null,"keine Leerzeilen !"]
[null,null,null,"keine Leerzeilen !"]
[null,null,null,"keine Leerzeilen !"]
[null,null,null,"keine Leerzeilen !"]
[null,null,null,"keine Leerzeilen !"]
[null,null,null,"keine Leerzeilen !"]
[null,null,null,"keine Leerzeilen !"]
[null,null,null,"keine Leerzeilen !"]
[null,null,null,"keine Leerzeilen !"]
[null,null,null,"keine Leerzeilen !"]
[null,null,null,"keine Leerzeilen !"]
[null,null,null,"keine Leerzeilen !"]
[null,null,null,"keine Leerzeilen !"]

{"sheet":"Feiertage in den BL","index":3,"n_rows":140,"n_cols":23,"rows_kept":140,"cut":false,"hidden":true,"merged":[]}
["Feiertage in den deutschen BL 2014",null,11,2017,"Testfirma GmbH & Co. KG","Max Mustermann","Testfirma GmbH & Co. KG","Max Mustermann"]
[null,"Neujahr","Berchtoldstag (CH)","Heilige Dreikönige","St. Josef (CH)","Karfreitag","Ostersonntag","Ostermontag","Tag der Arbeit","Christi Himmelfahrt","Pfingstsonntag","Fronleichnam","Schweizer Nationalfeiertag","Friedensfest Augsburg","Mariä Himmelfahrt","Tag der deutschen Einheit","Österreichicher Nationalfeiertag (A)","Reformationstag","Allerheiligen","Buß- und Bettag","Maria Empfängnis","1. Weihnachtstag","2. Weihnachtstag"]
[null,"1.1.","2.1.","6.1.","19.3.","18.4.","20.4.","21.4.","1.5.","29.5.","9.6.","19.6.","1.8.","8.8.","15.8.","3.10.","26.10.","31.10.","1.11.","19.11.","8.12.","25.12.","26.12."]
["Baden-Württemberg",null,null,"x",null,"x",null,"x","x","x","x","x",null,null,null,"x",null,null,"x",null,null,"x","x"]
["Bayern","x",null,"x",null,"x",null,"x","x","x","x","x",null,"xx","xx","x",null,null,"x",null,null,"x","x"]
["Berlin"," ",null,null,null,"x",null,"x","x","x","x",null,null,null,null,"x",null,null,null,null,null,"x","x"]
["Brandenburg","x",null,null,null,"x","x","x","x","x","x",null,null,null,null,"x",null,"x",null,null,null,"x","x"]
["Bremen","x",null,null,null,"x",null,"x","x","x","x",null,null,null,null,"x",null,null,null,null,null,"x","x"]
["Hamburg","x",null,null,null,"x",null,"x","x","x","x","x",null,null,null,"x",null,null,null,null,null,"x","x"]
["Hessen","x",null,null,null,"x",null,"x","x","x","x",null,null,null,null,"x",null,null,null,null,null,"x","x"]
["Mecklenburg-Vorpom.","x",null,null,null,"x",null,"x","x","x","x",null,null,null,null,"x",null,"x",null,null,null,"x","x"]
["Niedersachsen","x",null,null,null,"x",null,"x","x","x","x",null,null,null,null,"x",null,null,null,null,null,"x","x"]
["Nordrhein-Westfalen","x",null,null,null,"x",null,"x","x","x","x","x",null,null,null,"x",null,null,"x",null,null,"x","x"]
["Rheinland-Pfalz","x",null,null,null,"x",null,"x","x","x","x","x",null,null,null,"x",null,null,"x",null,null,"x","x"]
["Saarland","x",null,null,null,"x",null,"x","x","x","x","x",null,null,"x","x",null,null,"x",null,null,"x","x"]
["Sachsen","x",null,null,null,"x",null,"x","x","x","x","xx",null,null,null,"x",null,"x",null,"x",null,"x","x"]
["Sachsen-Anhalt","x",null,"x",null,"x",null,"x","x","x","x",null,null,null,null,"x",null,"x",null,null,null,"x","x"]
["Schleswig-Holstein","x",null,null,null,"x",null,"x","x","x","x",null,null,null,null,"x",null,null,null,null,null,"x","x"]
["Thüringen","x",null,null,null,"x",null,"x","x","x","x","xx",null,null,null,"x",null,"x",null,null,null,"x","x"]
["Österreich  (A)","x",null,"x",null,"xx",null,"x","x","x","x","x",null,null,"x",null,"x","x","x",null,"x","x","x"]
["Schweiz  (CH)","x","xx","xx","xx","xx",null,"xx","xx","x","xx","xx","x",null,"xx",null,null,null,"xx",null,"xx","x","xx"]
[]
[]
[]
[]
[]
[]
[]
[]
[]
[]
[]
[]
[]
[]
[]
[]
[]
["CLITFB","ENQUTW"]
["Anfrage","Freischaltcode"]
["KQNFOQ","TERAPP"]
["MRDGIQ","XWNKCX"]
["BFEBMF","FLGFII"]
["TUVOPS","WONDKE"]
["QQDDDM","IDUMMO"]
["XGNHRI","MGTIUA"]
["FTEQID","NAEUVD"]
["DATRCF","WWARFY"]
["ASXCPK","WWJPXH"]
["RQSBAI","DVBSLB"]
["APLTNP","FJMCSX"]
["FSGWCB","SUHDNN"]
["ODSGEG","BNTASN"]
["XYYEPB","RMMRJJ"]
["PTMOXI","MDXLFI"]
["KGWWUB","JDPHKJ"]
["NBLEJA","SOWFOY"]
["FDAVMC","AIFFBA"]
["XAOPNB","AAOBFH"]
["GLMRXV","HOWRSH"]
["KCRRLI","XMXMJI"]
["XJRFUM","FHYSRY"]
["FFLEUT","BOKNNR"]
["XISXWK","FRLDTX"]
["WWFCYE","GENBUC"]
["WSHUIL","LPKRNX"]
["JARYFP","FNTEPY"]
["SKLLQL","MVHYQI"]
["CLITFB","ENQUTW"]
["UQDFXT","EKTWNO"]
["QGIMTB","VGASTM"]
["QHIWAE","PFRWAH"]
["GTPSTV","TVTRAE"]
["THBJFF","SCHESF"]
["ALGPLP","PKRSXA"]
["UFFXDL","QWRHHX"]
["YIDAXA","DKODNN"]
["TFWGUG","VXRUWF"]
["SJSXUD","WGLBAG"]
["WJUCCO","WPPPHG"]
["ANFFHH","VYIUAE"]
["EVBEDI","EMSAUM"]
["ULXLJN","JJDIKL"]
["URCCJQ","GFOFSM"]
["NFUCGC","MGOVLQ"]
["GVXOPO","TERKAC"]
["OIKYFD","KYPQQT"]
["CCSFIB","SBVNUV"]
["UEXXLY","FHGMQD"]
["QSJEJC","OSWRCQ"]
["AJQQKF","TLDUQU"]
["JCRDSD","AOPRNS"]
["OSJCGI","DGSOQA"]
["XKJSRQ","USDVJU"]
["MDLMNN","VXTAKC"]
["YFSCEI","XVFCFL"]
["OBWMHQ","WRTYFJ"]
["AOHMKB","TBFAFV"]
["BVPTFR","KUAFKR"]
["JRVOSE","XYUTGP"]
["DUBFBE","EBLELO"]
["SEPNQP","YKMPSC"]
["BYFONX","XCGUEN"]
["PTUTHJ","PRUAHQ"]
["LPMVEH","EIJTEP"]
["ICHNAW","YVIBCL"]
["QRGKQG","EYHWRB"]
["XFQDEL","GRJUXI"]
["LPKBDD","CJIUMP"]
["VNIBJV","PGOGCX"]
["EIEMFH","PLUYBP"]
["FYERPI","FKYHCF"]
["VSGCRC","PPTPFO"]
["VLEADQ","QVDBTC"]
["TAGNWL","CRVJTB"]
["LMKTER","NGTKRH"]
["BNCHGE","MHHWNP"]
["SFJMYY","GRJTRO"]
["VYEWWT","DLJSMD"]
["HJHJIQ","IFHFXG"]
["KLDPQO","XFBOIL"]
["FYYVCP","LBTPQQ"]
["PENJJB","NVRNFC"]
["MRUSYB","KKSLYF"]
["THEAJH","GCKBSF"]
["BEYMVW","SEFIBP"]
["MUGNCT","WQCOCD"]
["NSVSWB","TLOEIC"]
["AYFBEL","FCIVRP"]
["FEXFHH","IOQMKH"]
["RTGJSD","CUEKSV"]
["YFONET","YEEALC"]
["OTWKQX","PIBDJM"]
["ROLTOT","BPOHWS"]
["QETNOY","RXKCUW"]
["YBWWXM","TTYXDH"]
["VYWHPS","RJGATO"]
["VWPLNK","MXLTVK"]
["QRXEVY","OXTJKG"]
["IWRLIE","YQWVOM"]

{"sheet":"! Bedienungsanleitung !","index":4,"n_rows":167,"n_cols":30,"rows_kept":167,"cut":false,"hidden":false,"merged":[[86,10,86,17],[90,10,90,17],[87,1,87,7],[141,1,141,8],[147,1,147,6],[148,1,148,6],[149,1,149,6],[79,1,79,8],[80,1,80,8],[76,1,76,8],[77,1,77,8],[157,12,157,17],[154,1,154,6],[155,1,155,6],[156,1,156,6],[157,1,157,6],[159,1,159,6],[160,1,160,6],[0,6,0,8],[17,1,17,8],[21,1,21,6],[118,4,118,8],[117,4,117,8],[88,1,88,5],[92,1,92,8],[153,1,153,6],[158,1,158,6],[74,1,74,8],[75,1,75,8],[85,1,85,7],[150,1,150,6],[152,1,152,6],[53,1,53,8],[166,1,166,6],[167,1,167,6],[151,1,151,7],[18,1,18,6],[20,1,20,6],[22,1,22,6],[26,1,26,6],[161,1,161,6],[162,1,162,6],[163,1,163,6],[164,1,164,6],[165,1,165,6],[32,1,32,6],[140,1,140,8],[142,1,142,8],[23,1,23,8],[2,13,2,15],[75,11,75,18],[74,11,74,18],[35,1,35,8],[73,3,73,8],[2,2,2,5],[3,2,3,5],[28,1,28,4],[30,1,30,8],[29,1,29,8],[50,1,50,8],[50,12,50,19],[24,1,24,6],[51,1,51,8],[52,1,52,8]]}
["SL-Tool:  \"SL-UrlaubsAntrag\" - Excel-Zusatzmodul zum \"SL-Urlaubsplaner\"",null,null,null,null,null,"Vers.1.3 v. 09.11.2015",null,null,null,"letzter Stand:   03.09.2014",null,null,null,null,null,null,null,null,null,null,null,0,0]
[null,null,null,null,null,null,null,null,null,null,null,null,null,null,null,null,null,null,null,null,null,null,0,0]
["Software-Entwickler:",null,"Software und Büroservice Christine Schremmer & Jörg Lortz\n63500 Seligenstadt,   Odenwaldring 13, Tel.:  06182 - 787 3203\nMail:  christine.schremmer@t-online.de"]
[null,null,"Stefan Ludewig,  63796  Kahl/Main,  Hauptstraße 23\nMail:  St.Ludewig@AOL.com"]
[]
[]
["Info und Bedienungsanleitung"]
["1.","Funktionen:  Voll- bzw. Demoversion",null,null,"5.     Screenshots / Videos"]
["2.","Installation / Bestellen",null,null,"6.     Systemvoraussetzung, Einstellungen"]
["3.","Datenübernahme aus dem Urlaubsplaner (UP) ",null,null,"7.     Preise - Bestellen"]
["4.","Anwendungsbeispiele",null,null,"8.     Kontakt / Rechte / Gewährleistung"]
[]
[]
[null,null,null,null,null,null,null,null,null,null,null,null,null,null,null,null,null,null,null,null,null,null,null,null,null,null,null,null,1,1]
["Info und Bedienungsanleitung"]
[]
["1.","Funktionen:  Voll- und Demofunktion"]
[null,"Das Excel-Tool übernimmt die Personaldaten aus dem \"SL-Urlaubsplaner\", siehe Pkt. 3., und listet"]
[null,"-  die verschiedenen Abteilungen  in das Register-Blatt \"Abteilungen\" "]
[null,"-  alle Mitarbeiter:  Name, Vorname, Abteilung und Personal-Nr. werden in das  Blatt \"Namen\" geschrieben"]
[null,"-  die Einträge können bearbeitet, erweitert und sortiert werden"]
[null,"-  alle dt. Bundesländer, Österreich und Schweiz mit den jeweils gültigen Feiertagen"]
[null,"-  Datumspicker, … , siehe Pkt. 4."]
[null,"-  Wochendend- und Feiertagsarbeit wird bei der Urlaubsberechnung berücksichtigt, siehe Video u. Pkt. 4."]
[null,"-  variabler Formularausdruck"]
[]
["2.","Installation / Bestellen"]
["2a","Installation der Demoversion,  Dateiname:  \"SL-UrlaubsAntrag.xlsm\" "]
[null,"-  Demoversion speichern, empfohlen nach:   C : \\ Urlaubsplaner",null,null,null,null,"siehe auch  2i"]
[null,"   (empfohlen wird eine Sicherheitskopie)"]
[null,"-  Demoversion erneut öffnen und anwenden - Voll funktionsfähig bis 30.Juni 2016 \n    ohne Begrenzung der Konten-Anzahl !"]
["2b","Bestellen der Vollversion"]
[null,"Testen Sie erst die voll funktionsfähige und kostenlose Demoversion, bevor Sie die Vollversion bestellen!\n \nDie Vollfunktion können Sie direkt aus der Demoversion heraus bestellen, siehe 2c ...."]
[]
["2c","Demoversion erneut öffnen  >  Klicken Sie auf "]
[null,"Bestellformular ausfüllen:  Name bzw. Firma - Straße - PLZ  Ort"]
[]
[]
[]
[]
[]
[]
[]
[]
[]
[]
[]
[]
[]
[]
["-","Es wird Ihr Bestell-Schlüssel angezeigt."]
["-","Klicken Sie auf \"Kosten der Vollversion\"   >  Sie erhalten Infos und die Kosten genannt   "]
["-",">  AGBs akzeptieren  >  ok"]
["-",">  "]
[]
[]
[]
[]
[]
[]
["2d","E-Mail versenden  >"]
[]
[]
[]
[]
[]
[]
[]
[]
[]
[]
[]
["2e","Sie erhalten von uns den  Freischaltcode,  inkl. Rechnung als PDF-Dokument"]
["2f",null,null,">     Freischaltcode im untersten Feld eingeben."]
["2g","Speichern Sie nun Ihre Vollversion  (empfohlen wird eine Sicherheitskopie) !"]
["2h","Evtl. verlinken Sie die Datei auf Ihren Desktop  >  rechte Maustaste  >  Verknüpfung erstellen"]
["2i","Excelbedingte Laufzeitfehlermeldungen, z.B. 1004  sind abhängig von der Excel-Version, jedoch völlig\nunbedenklich  >  Klicken Sie auf:   Beenden"]
["2j","Sollten in sehr seltenen Fällen Ihre Listboxen (Bundesländer, Abteilungen, Namen) ausfallen, so können\nSie diese aktivieren:     Menü > Entwicklertools > Makros > enable_ein  > Ausführen"]
[]
["3.","Datenübernahme aus dem Urlaubsplaner (UP) in die Datei \"SL-UrlaubsAntrag.xlsm\"  siehe Pkt. 2a."]
["3a","Öffnen Sie den UP  und wählen im Menüpunkt  >  Drucken  >  Urlaubsantragsformular … (MS Excel)"]
[null,"-  Es wird das Excel-Blatt  \"Name-Abteilung-Pers.Nr.xls\"  erstellt  >   dieses Anklicken"]
[null,"   Ihre Konten-Personaldaten stehen ab Zeile 100 in vorgenannter Excel-Datei.",null,null,null,null,null,null,null,null,null,null,"-  Es wird das Excel-Blatt  \"UP-Urlaubsantrag_Excel 97-2003.xls\"  erstellt  >   dieses Anklicken"]
[null,null,null,null,null,null,null,null,null,null,null,null,"   Ihre Konten-Personaldaten stehen ab Zeile 100 in dieser Excel-Datei."]
["3b","-  Speichern  Sie  \"Name-Abteilung-Pers.Nr.xls\"  in den Ordner \"sonstiges\" des UP, z.B. Pfad:",null,null,null,null,null,null,null,null,null,null,"-  Speichern  Sie  \"Konten_Namen-Abteilungen.xls\"  in den Ordner \"sonstiges\" Ihres UP, z.B. in den Pfad:"]
[null,"C:\\Urlaubsplaner\\2015\\Version 2.15\\Deutschland\\sonstiges"]
[]
["3c","Datenübername:  Öffnen Sie nun die \"SL-UrlaubsAntrag.xlsm\"  >  Installationsort, s. Pkt. 2a"]
[null,"klicken Sie auf  "]
["3d","Wählen Sie den Pfad > siehe  3b"]
[null,"-  Dieser Pfad wird nach der Datenübernahme im Blatt  \"Namen\"  in der Zeile 1  dokumentiert."]
[]
["3e","Das Blatt  \"Namen\"  kann von Hand  laufend aktualisiert werden. \nFalls Sie den \"Button\" erneut aktivieren möchten, kontaktieren uns bitte,  siehe Kontakt.\n\nEmpfehlung:  Jedem  Mitarbeiter  sollte  eine  Abteilung  und  eine  Personal-Nr.  zugeordnet  sein."]
[]
["4.","Anwendungsbeispiele"]
["4a","Auswahl:   Bundesland  /  Abteilung  /  Name"]
[]
[]
[]
[]
[]
[]
[]
[]
[]
[]
[]
[]
[]
[]
[]
[]
[]
["4b","Urlaub eintragen, Kalenderfeld / Datumspicker"]
[null,"Mein Urlaubsanspruch beträgt noch",null,24,{"$f":"IF(D115=1,\"Tag\",\"Tage\")","v":"Tage"}]
[]
[null,"Davon wird Urlaub beantragt   am/vom",null,"2016-03-14","bis einschl.","2016-03-31","=",7,{"$f":"IF(H117=1,\"Tag\",\"Tage\")","v":"Tage"}]
[null,1,{"$f":"IF(B118>1,\"Tage sind nicht anzurechnen, wegen\",\"Tag ist nicht anzurechnen, wegen\")","v":"Tag ist nicht anzurechnen, wegen"},null,"Hochzeit"]
[null,null,null,null,"(Geburt, Heirat, Umzug, Todesfall, etc.)"]
[null,"Aktueller Urlaubsanspruch jetzt noch",null,17,{"$f":"IF(D120=1,\"Tag\",\"Tage\")","v":"Tage"}]
[]
[]
[]
[]
[]
[]
[]
[]
[]
[]
[]
[]
[]
[]
[]
[]
[]
[]
[]
["4c","Blatt \"Namen\""]
["- ","Hier werden die Daten aus dem SL-Urlaubsplaner  (Namen / Abteilungen / Personal-Nr.) gelistet."]
["- ","Die Tabelle kann von Hand geändert und erweitert werden - mit Sortierfunktion."]
["- ","In Zeile 1 und 2 finden Sie den  Pfad zu den UP-Daten u. den Dateinamen."]
[]
[]
[]
[]
["5.","Screenshots / Videos"]
[null,"Hilfestellung erhalten Sie auf unserer Homepage. Hier werden anschaulich die wichtigsten Funktionen und Vorgehensweisen vorgestellt.\n>  Homepage  >  SL-Tools  >  \"UrlaubsAntrag\""]
["6."," Systemvoraussetzung, Einstellungen"]
[null,"-  SL-Urlaubsplaner\" ab Version  2.15\n-  Excel"]
[null,"Hinweis für Programm-Anwender / Administrator:"]
[null,"In Einzelfällen ist die Einstellung der Makrosicherheit Ihres Systems anzupassen. Video hierzu liegt bei uns vor, bei Bedarf bitte anfordern."]
["7.","Preise - Bestellen (siehe Pkt. 2 b+c)"]
[null,"   ●  Gemäß AGB- und Lizenzbestimmungen erwerben Sie beim Kauf der Vollversion eine \n       Einzelplatzanwendung zum Preis von:    24,00 € "]
[null,"   ●  Mehrfach-Lizenzen über Kontakt, Pkt.8, bestellbar: "]
[null,"   ●    bis 20 Anwender (Arbeitsplätze):   12,00 € "]
[null,"   ●    > 20 Anwender (Arbeitsplätze):   Anzahl x 0,60 € "]
[null,"   ●    in den Preisen ist die gesetzliche MwSt. von 19 Prozent enthalten."]
["8.","Kontakt / Rechte / Gewährleistung"]
[null,"Software und Büroservice Christine Schremmer\nOdenwaldring 13\n63500 Seligenstadt\n\nTel.:   +49 (0) 6182 – 787 3203\nFax:   +49 (0) 6182 – 95 97 475\nE-Mail: christine.schremmer@t-online.de\nUst-IdNr.:  DE250861697"]
[null,"Rechte"]
[null,"Das hier vorgestellte SL-Tool ist ein spezifisches Excel-Arbeitsblatt zur Auswertung der Daten des \"SL-Urlaubsplaners\". Es gelten daher für die Voll- und Demoversionen die AGB's, Lizenzbedingungen und Schutzbestimmungen des \"SL-Urlaubsplaners\".  \n! Dies gilt für alle Bestandteile und Inhalte !"]
[null,"Gewährleistung:  Vor Bestellung prüfen und kontrollieren Sie bitte an Hand der aktuellen, kostenlosen Demoversion, ob Umfang und Funktion Ihren Vorstellungen entsprechen."]
[null,"Bitte vergewissern Sie sich durch Testeinträge von der Plausiblität der Auswertungen."]
[null,"Mängelansprüche werden entsprechend Punkt 6 unserer AGB's behoben bzw. beglichen. "]
[null,"Ihre Fragen werden wir gern und möglichst kurzfristig beantworten."]